Workbook

Sheet 2019 Summary
B2: Workforce Demographics Overview - 2019
K5: Age Band | L5: Headcount | M5: %
K6: 16-25 | L6: 672 | M6: =L6/SUM($L$6:$L$11) -> 0.1022675392 | X6: Disability | Y6: Headcount | Z6: %
K7: 26-35 | L7: 1706 | M7: 0.2596256278 | X7: Yes | Y7: 210 | Z7: =Y7/SUM($Y$7:$Y$10) -> 0.031958606
K8: 36-45 | L8: 1412 | M8: 0.2148835794 | X8: No | Y8: 5035 | Z8: =Y8/SUM($Y$7:$Y$10) -> 0.7662456247
K9: 46-55 | L9: 1584 | M9: 0.2410591995 | X9: Not Declared | Y9: 92 | Z9: =Y9/SUM($Y$7:$Y$10) -> 0.0140009131
K10: 56-65 | L10: 1041 | M10: 0.1584233754 | X10: Not Recorded | Y10: 1234 | Z10: =Y10/SUM($Y$7:$Y$10) -> 0.1877948562
K11: 66 and Over | L11: 156 | M11: 0.02374067874
K16: Ethnicity | L16: Headcount | M16: % | X16: Gender | Y16: Headcount | Z16: %
K17: White - British | L17: 5032 | M17: =L17/SUM($L$17:$L$20) -> 0.7657890732 | X17: Female | Y17: 5062 | Z17: =Y17/SUM($Y$17:$Y$18) -> 0.7703545883
K18: White - Other | L18: 635 | M18: =L18/SUM($L$17:$L$20) -> 0.09663673718 | X18: Male | Y18: 1509 | Z18: =Y18/SUM($Y$17:$Y$18) -> 0.2296454117
K19: BME | L19: 823 | M19: =L19/SUM($L$17:$L$20) -> 0.1252472987
K20: Not Recorded | L20: 81 | M20: =L20/SUM($L$17:$L$20) -> 0.01232689088
K27: Relationship Status | L27: Headcount | M27: % | X27: Religious Belief | Y27: Headcount | Z27: %
K28: Single | L28: 2548 | M28: =L28/SUM($L$28:$L$34) -> 0.3877644194 | X28: Atheism | Y28: 1124 | Z28: =Y28/SUM($Y$28:$Y$37) -> 0.171054634
K29: Married | L29: 3277 | M29: 0.4987064374 | X29: Buddhism | Y29: 32 | Z29: 0.004869882818
K30: Civil Partnership | L30: 77 | M30: 0.01171815553 | X30: Christianity | Y30: 2932 | Z30: 0.4462030132
K31: Divorced | L31: 345 | M31: 0.05250342414 | X31: Hinduism | Y31: 49 | Z31: 0.007457008066
K32: Legally Separated | L32: 55 | M32: 0.008370111094 | X32: Islam | Y32: 54 | Z32: 0.008217927256
K33: Widowed | L33: 46 | M33: 0.007000456552 | X33: Judaism | Y33: 6 | Z33: 0.0009131030285
K34: Not Recorded | L34: 223 | M34: 0.03393699589 | X34: Sikhism | Y34: 9 | Z34: 0.001369654543
X35: Other | Y35: 548 | Z35: 0.08339674327
X36: Not Declared | Y36: 1001 | Z36: 0.1523360219
X37: Not Recorded | Y37: 816 | Z37: 0.1241820119
K40: Ethnicity | L40: Headcount | M40: %
K41: Heterosexual | L41: 5018 | M41: =L41/SUM($L$41:$L$46) -> 0.7636584995
K42: LGB | L42: 121 | M42: =L42/SUM($L$41:$L$46) -> 0.01841424441
K43: Other | L43: 1 | M43: 0.0001521838381
K44: Undecided | L44: 6 | M44: 0.0009131030285
K45: Not Declared | L45: 584 | M45: 0.08887536144
K46: Not Recorded | L46: 841 | M46: 0.1279866078

Sheet 2019 Data by Employee Type
B2: Workforce Demographics by Staff Type - 2019
J26: Age Band | K26: Substantive - Full Time | L26: Substantive - Part Time | M26: Bank
J27: 16-25 | K27: 371 | L27: 93 | M27: 208
J28: 26-35 | K28: 911 | L28: 456 | M28: 339
J29: 36-45 | K29: 583 | L29: 624 | M29: 205
J30: 46-55 | K30: 772 | L30: 649 | M30: 163
J31: 56-65 | K31: 382 | L31: 511 | M31: 148
J32: 66 and Over | K32: 10 | L32: 96 | M32: 50
J56: Disability | K56: Substantive - Full Time | L56: Substantive - Part Time | M56: Bank
J57: Yes | K57: 115 | L57: 71 | M57: 24
J58: No | K58: 2343 | L58: 1739 | M58: 953
J59: Not Declared | K59: 31 | L59: 45 | M59: 16
J60: Not Recorded | K60: 540 | L60: 574 | M60: 120
J85: Ethnicity | K85: Substantive - Full Time | L85: Substantive - Part Time | M85: Bank
J86: White British | K86: 2183 | L86: 2053 | M86: 796
J87: White Other | K87: 324 | L87: 190 | M87: 121
J88: BME | K88: 495 | L88: 169 | M88: 159
J89: Not Recorded | K89: 27 | L89: 17 | M89: 37
J114: Gender | K114: Substantive - Full Time | L114: Substantive - Part Time | M114: Bank
J115: Female | K115: 2015 | L115: 2182 | M115: 865
J116: Male | K116: 1014 | L116: 247 | M116: 248
J140: Relationship Status | K140: Substantive - Full Time | L140: Substantive - Part Time | M140: Bank
J141: Single | K141: 1408 | L141: 612 | M141: 528
J142: Married | K142: 1305 | L142: 1534 | M142: 438
J143: Civil Partnership | K143: 33 | L143: 29 | M143: 15
J144: Divorced | K144: 155 | L144: 137 | M144: 53
J145: Legally Separated | K145: 24 | L145: 24 | M145: 7
J146: Widowed | K146: 14 | L146: 24 | M146: 8
J147: Not Recorded | K147: 90 | L147: 69 | M147: 64
J171: Religious Belief | K171: Substantive - Full Time | L171: Substantive - Part Time | M171: Bank
J172: Atheism | K172: 604 | L172: 290 | M172: 230
J173: Buddhism | K173: 15 | L173: 9 | M173: 8
J174: Christianity | K174: 1324 | L174: 1135 | M174: 473
J175: Hinduism | K175: 33 | L175: 7 | M175: 9
J176: Islam | K176: 36 | L176: 7 | M176: 11
J177: Judaism | K177: 3 | L177: 3 | M177: 0
J178: Sikhism | K178: 8 | L178: 0 | M178: 1
J179: Other | K179: 255 | L179: 191 | M179: 102
J180: Not Declared | K180: 419 | L180: 404 | M180: 178
J181: Not Recorded | K181: 332 | L181: 383 | M181: 101
J205: Sexual Orientation | K205: Substantive - Full Time | L205: Substantive - Part Time | M205: Bank
J206: Heterosexual | K206: 2362 | L206: 1777 | M206: 879
J207: LGB | K207: 77 | L207: 20 | M207: 24
J208: Other | K208: 1 | L208: 0 | M208: 0
J209: Undecided | K209: 2 | L209: 1 | M209: 3
J210: Not Declared | K210: 244 | L210: 232 | M210: 108
J211: Not Recorded | K211: 343 | L211: 399 | M211: 99

Sheet 2019 Data By Pay Band
B2: Workforce Demographics by Pay Band - 2019
G26: Age Band | H26: Band 1 | I26: Band 2 | J26: Band 3 | K26: Band 4 | L26: Band 5 | M26: Band 6 | N26: Band 7 | O26: Band 8 | P26: Band 9 | Q26: Trainee Grade | R26: Career Grade | S26: Consultant | T26: Other
G27: 16-25 | H27: 4 | I27: 333 | J27: 54 | K27: 38 | L27: 157 | M27: 37 | N27: 2 | O27: 0 | P27: 0 | Q27: 47 | R27: 0 | S27: 0 | T27: 0
G28: 26-35 | H28: 9 | I28: 349 | J28: 142 | K28: 117 | L28: 393 | M28: 266 | N28: 98 | O28: 30 | P28: 0 | Q28: 278 | R28: 5 | S28: 17 | T28: 2
G29: 36-45 | H29: 7 | I29: 329 | J29: 117 | K29: 68 | L29: 257 | M29: 229 | N29: 134 | O29: 78 | P29: 2 | Q29: 60 | R29: 15 | S29: 112 | T29: 4
G30: 46-55 | H30: 6 | I30: 400 | J30: 156 | K30: 85 | L30: 257 | M30: 218 | N30: 210 | O30: 94 | P30: 4 | Q30: 17 | R30: 25 | S30: 98 | T30: 14
G31: 56-65 | H31: 6 | I31: 329 | J31: 173 | K31: 60 | L31: 146 | M31: 129 | N31: 74 | O31: 44 | P31: 2 | Q31: 4 | R31: 18 | S31: 44 | T31: 12
G32: 66 and Over | H32: 3 | I32: 76 | J32: 25 | K32: 7 | L32: 17 | M32: 9 | N32: 3 | O32: 3 | P32: 0 | Q32: 2 | R32: 1 | S32: 4 | T32: 6
G56: Disability Status | H56: Band 1 | I56: Band 2 | J56: Band 3 | K56: Band 4 | L56: Band 5 | M56: Band 6 | N56: Band 7 | O56: Band 8 | P56: Band 9 | Q56: Trainee Grade | R56: Career Grade | S56: Consultant | T56: Other
G57: Yes | H57: 5 | I57: 80 | J57: 27 | K57: 15 | L57: 33 | M57: 26 | N57: 16 | O57: 4 | P57: 0 | Q57: 3 | R57: 0 | S57: 0 | T57: 1
G58: No | H58: 21 | I58: 1412 | J58: 504 | K58: 286 | L58: 977 | M58: 686 | N58: 341 | O58: 182 | P58: 6 | Q58: 387 | R58: 28 | S58: 182 | T58: 23
G59: Not Declared | H59: 0 | I59: 13 | J59: 10 | K59: 7 | L59: 17 | M59: 24 | N59: 6 | O59: 0 | P59: 0 | Q59: 13 | R59: 1 | S59: 0 | T59: 1
G60: Not Recorded | H60: 9 | I60: 311 | J60: 126 | K60: 67 | L60: 200 | M60: 152 | N60: 158 | O60: 63 | P60: 2 | Q60: 5 | R60: 35 | S60: 93 | T60: 13
G84: Ethnicity | H84: Band 1 | I84: Band 2 | J84: Band 3 | K84: Band 4 | L84: Band 5 | M84: Band 6 | N84: Band 7 | O84: Band 8 | P84: Band 9 | Q84: Trainee Grade | R84: Career Grade | S84: Consultant | T84: Other
G85: White British | H85: 15 | I85: 1327 | J85: 582 | K85: 301 | L85: 842 | M85: 732 | N85: 447 | O85: 217 | P85: 6 | Q85: 282 | R85: 37 | S85: 214 | T85: 30
G86: White Other | H86: 11 | I86: 206 | J86: 43 | K86: 23 | L86: 123 | M86: 84 | N86: 38 | O86: 20 | P86: 2 | Q86: 54 | R86: 7 | S86: 22 | T86: 2
G87: BME | H87: 9 | I87: 261 | J87: 34 | K87: 48 | L87: 247 | M87: 65 | N87: 30 | O87: 10 | P87: 0 | Q87: 62 | R87: 20 | S87: 37 | T87: 0
G88: Not Recorded | H88: 0 | I88: 22 | J88: 8 | K88: 3 | L88: 15 | M88: 7 | N88: 6 | O88: 2 | P88: 0 | Q88: 10 | R88: 0 | S88: 2 | T88: 6
G112: Gender | H112: Band 1 | I112: Band 2 | J112: Band 3 | K112: Band 4 | L112: Band 5 | M112: Band 6 | N112: Band 7 | O112: Band 8 | P112: Band 9 | Q112: Trainee Grade | R112: Career Grade | S112: Consultant | T112: Other
G113: Female | H113: 18 | I113: 1354 | J113: 560 | K113: 306 | L113: 1053 | M113: 768 | N113: 427 | O113: 177 | P113: 5 | Q113: 237 | R113: 35 | S113: 101 | T113: 21
G114: Male | H114: 17 | I114: 462 | J114: 107 | K114: 69 | L114: 174 | M114: 120 | N114: 94 | O114: 72 | P114: 3 | Q114: 171 | R114: 29 | S114: 174 | T114: 17
G140: Relationship Status | H140: Band 1 | I140: Band 2 | J140: Band 3 | K140: Band 4 | L140: Band 5 | M140: Band 6 | N140: Band 7 | O140: Band 8 | P140: Band 9 | Q140: Trainee Grade | R140: Career Grade | S140: Consultant | T140: Other
G141: Single | H141: 14 | I141: 821 | J141: 205 | K141: 159 | L141: 532 | M141: 292 | N141: 141 | O141: 67 | P141: 0 | Q141: 250 | R141: 12 | S141: 52 | T141: 3
G142: Married | H142: 21 | I142: 754 | J142: 346 | K142: 165 | L142: 573 | M142: 521 | N142: 326 | O142: 160 | P142: 8 | Q142: 127 | R142: 48 | S142: 207 | T142: 21
G143: Civil Partnership | H143: 0 | I143: 27 | J143: 16 | K143: 6 | L143: 11 | M143: 6 | N143: 6 | O143: 1 | P143: 0 | Q143: 2 | R143: 0 | S143: 2 | T143: 0
G144: Divorced | H144: 0 | I144: 118 | J144: 60 | K144: 29 | L144: 55 | M144: 33 | N144: 24 | O144: 16 | P144: 0 | Q144: 3 | R144: 2 | S144: 4 | T144: 1
G145: Legally Separated | H145: 0 | I145: 23 | J145: 11 | K145: 4 | L145: 5 | M145: 3 | N145: 4 | O145: 3 | P145: 0 | Q145: 0 | R145: 1 | S145: 0 | T145: 1
G146: Widowed | H146: 0 | I146: 22 | J146: 7 | K146: 2 | L146: 7 | M146: 2 | N146: 3 | O146: 0 | P146: 0 | Q146: 1 | R146: 0 | S146: 1 | T146: 1
G147: Not Recorded | H147: 0 | I147: 51 | J147: 22 | K147: 10 | L147: 44 | M147: 31 | N147: 17 | O147: 2 | P147: 0 | Q147: 25 | R147: 1 | S147: 9 | T147: 11
G171: Religious Belief | H171: Band 1 | I171: Band 2 | J171: Band 3 | K171: Band 4 | L171: Band 5 | M171: Band 6 | N171: Band 7 | O171: Band 8 | P171: Band 9 | Q171: Trainee Grade | R171: Career Grade | S171: Consultant | T171: Other
G172: Atheism | H172: 0 | I172: 288 | J172: 117 | K172: 75 | L172: 214 | M172: 139 | N172: 82 | O172: 37 | P172: 0 | Q172: 129 | R172: 2 | S172: 39 | T172: 2
G173: Buddhism | H173: 0 | I173: 17 | J173: 2 | K173: 0 | L173: 6 | M173: 2 | N173: 1 | O173: 0 | P173: 0 | Q173: 2 | R173: 0 | S173: 2 | T173: 0
G174: Christianity | H174: 21 | I174: 824 | J174: 301 | K174: 177 | L174: 588 | M174: 439 | N174: 215 | O174: 118 | P174: 3 | Q174: 123 | R174: 18 | S174: 91 | T174: 14
G175: Hinduism | H175: 0 | I175: 11 | J175: 0 | K175: 1 | L175: 8 | M175: 4 | N175: 3 | O175: 2 | P175: 0 | Q175: 13 | R175: 3 | S175: 4 | T175: 0
G176: Islam | H176: 1 | I176: 16 | J176: 4 | K176: 1 | L176: 8 | M176: 4 | N176: 0 | O176: 1 | P176: 0 | Q176: 8 | R176: 3 | S176: 8 | T176: 0
G177: Judaism | H177: 0 | I177: 0 | J177: 0 | K177: 1 | L177: 2 | M177: 1 | N177: 1 | O177: 0 | P177: 0 | Q177: 0 | R177: 0 | S177: 1 | T177: 0
G178: Sikhism | H178: 0 | I178: 1 | J178: 0 | K178: 0 | L178: 1 | M178: 1 | N178: 0 | O178: 1 | P178: 0 | Q178: 2 | R178: 1 | S178: 2 | T178: 0
G179: Other | H179: 0 | I179: 190 | J179: 73 | K179: 36 | L179: 96 | M179: 65 | N179: 33 | O179: 12 | P179: 1 | Q179: 34 | R179: 3 | S179: 3 | T179: 2
G180: Not Declared | H180: 6 | I180: 246 | J180: 100 | K180: 44 | L180: 168 | M180: 154 | N180: 95 | O180: 41 | P180: 3 | Q180: 93 | R180: 4 | S180: 42 | T180: 5
G181: Not Recorded | H181: 7 | I181: 223 | J181: 70 | K181: 40 | L181: 136 | M181: 79 | N181: 91 | O181: 37 | P181: 1 | Q181: 4 | R181: 30 | S181: 83 | T181: 15
G205: Sexual Orientation | H205: Band 1 | I205: Band 2 | J205: Band 3 | K205: Band 4 | L205: Band 5 | M205: Band 6 | N205: Band 7 | O205: Band 8 | P205: Band 9 | Q205: Trainee Grade | R205: Career Grade | S205: Consultant | T205: Other
G206: Heterosexual | H206: 22 | I206: 1398 | J206: 532 | K206: 307 | L206: 960 | M206: 709 | N206: 363 | O206: 189 | P206: 7 | Q206: 321 | R206: 29 | S206: 164 | T206: 17
G207: LGB | H207: 0 | I207: 32 | J207: 13 | K207: 7 | L207: 29 | M207: 11 | N207: 13 | O207: 2 | P207: 0 | Q207: 13 | R207: 0 | S207: 1 | T207: 0
G208: Other | H208: 5 | I208: 155 | J208: 50 | K208: 22 | L208: 95 | M208: 84 | N208: 50 | O208: 20 | P208: 0 | Q208: 69 | R208: 5 | S208: 23 | T208: 6
G209: Undecided | H209: 0 | I209: 0 | J209: 0 | K209: 0 | L209: 0 | M209: 1 | N209: 0 | O209: 0 | P209: 0 | Q209: 0 | R209: 0 | S209: 0 | T209: 0
G210: Not Declared | H210: 0 | I210: 3 | J210: 0 | K210: 0 | L210: 1 | M210: 0 | N210: 0 | O210: 1 | P210: 0 | Q210: 1 | R210: 0 | S210: 0 | T210: 0
G211: Not Recorded | H211: 8 | I211: 228 | J211: 72 | K211: 39 | L211: 142 | M211: 83 | N211: 95 | O211: 37 | P211: 1 | Q211: 4 | R211: 30 | S211: 87 | T211: 15

Sheet Year on Year Comparison
B2: Workforce Demographics Year on Year Comparison
K26: Age Band | L26: 2019 | M26: 2018 | N26: 2017 | O26: 2016 | P26: 2015
K27: 16-25 | L27: ='2019 Summary'!M6 -> 0.1022675392 | M27: 0.1082305169 | N27: 0.1068554876 | O27: 0.08109942314 | P27: 0.1000865801
K28: 26-35 | L28: ='2019 Summary'!M7 -> 0.2596256278 | M28: 0.2511322817 | N28: 0.2518506598 | O28: 0.2451645741 | P28: 0.2431168831
K29: 36-45 | L29: ='2019 Summary'!M8 -> 0.2148835794 | M29: 0.2203654537 | N29: 0.2209526875 | O29: 0.2263318629 | P29: 0.2280519481
K30: 46-55 | L30: ='2019 Summary'!M9 -> 0.2410591995 | M30: 0.242698735 | N30: 0.2439652398 | O30: 0.2495758398 | P30: 0.2547186147
K31: 56-65 | L31: ='2019 Summary'!M10 -> 0.1584233754 | M31: 0.1536779635 | N31: 0.1515931767 | O31: 0.1681370886 | P31: 0.1503030303
K32: 66 and Over | L32: ='2019 Summary'!M11 -> 0.02374067874 | M32: 0.0238950492 | N32: 0.02478274863 | O32: 0.0296912114 | P32: 0.02372294372
K56: Disability | L56: 2019 | M56: 2018 | N56: 2017 | O56: 2016 | P56: 2015
K57: Yes | L57: ='2019 Summary'!Z7 -> 0.031958606 | M57: 0.03295330314 | N57: 0.03331187641 | O57: 0.03155751612 | P57: 0.02943722944
K58: No | L58: ='2019 Summary'!Z8 -> 0.7662456247 | M58: 0.7391847571 | N58: 0.7030897972 | O58: 0.6645741432 | P58: 0.5980952381
K59: Not Declared | L59: ='2019 Summary'!Z9 -> 0.0140009131 | M59: 0.01155708262 | N59: 0.008690054715 | O59: 0.01001017984 | P59: 0.005021645022
K60: Not Recorded | L60: ='2019 Summary'!Z10 -> 0.1877948562 | M60: 0.2163048571 | N60: 0.2549082716 | O60: 0.2938581608 | P60: 0.3674458874
K84: Ethnicity | L84: 2019 | M84: 2018 | N84: 2017 | O84: 2016 | P84: 2015
K85: White British | L85: ='2019 Summary'!M17 -> 0.7657890732 | M85: 0.776823364 | N85: 0.7779208239 | O85: 0.7792670512 | P85: 0.7800865801
K86: White Other | L86: ='2019 Summary'!M18 -> 0.09663673718 | M86: 0.1019834453 | N86: 0.1095912456 | O86: 0.1135052596 | P86: 0.1127272727
K87: BME | L87: ='2019 Summary'!M19 -> 0.1252472987 | M87: 0.114165235 | N87: 0.1062117799 | O87: 0.1043434001 | P87: 0.1018181818
K88: Not Recorded | L88: ='2019 Summary'!M20 -> 0.01232689088 | M88: 0.007027955646 | N88: 0.006276150628 | O88: 0.002884289108 | P88: 0.005367965368
K112: Gender | L112: 2019 | M112: 2018 | N112: 2017 | O112: 2016 | P112: 2015
K113: Female | L113: ='2019 Summary'!Z17 -> 0.7703545883 | M113: 0.7782289552 | N113: 0.772610235 | O113: 0.7740074652 | P113: 0.7754112554
K114: Male | L114: ='2019 Summary'!Z18 -> 0.2296454117 | M114: 0.2217710448 | N114: 0.227389765 | O114: 0.2259925348 | P114: 0.2245887446
K138: Relationship Status | L138: 2019 | M138: 2018 | N138: 2017 | O138: 2016 | P138: 2015
K139: Single | L139: ='2019 Summary'!M28 -> 0.3877644194 | M139: 0.3938778697 | N139: 0.3934663663 | O139: 0.3868340685 | P139: 0.3882251082
K140: Married | L140: ='2019 Summary'!M29 -> 0.4987064374 | M140: 0.4974230829 | N140: 0.5012874155 | O140: 0.5140821174 | P140: 0.5141125541
K141: Civil Partnership | L141: ='2019 Summary'!M30 -> 0.01171815553 | M141: 0.01093237545 | N141: 0.007402639202 | O141: 0.00559891415 | P141: 0.002597402597
K142: Divorced | L142: ='2019 Summary'!M31 -> 0.05250342414 | M142: 0.04872715914 | N142: 0.05230125523 | O142: 0.05327451646 | P142: 0.05748917749
K143: Legally Separated | L143: ='2019 Summary'!M32 -> 0.008370111094 | M143: 0.009214430736 | N143: 0.01029932411 | O143: 0.008822531388 | P143: 0.00987012987
K144: Widowed | L144: ='2019 Summary'!M33 -> 0.007000456552 | M144: 0.006559425269 | N144: 0.006115223688 | O144: 0.007295554801 | P144: 0.007272727273
K145: Not Recorded | L145: ='2019 Summary'!M34 -> 0.03393699589 | M145: 0.03326565672 | N145: 0.02912777599 | O145: 0.02409229725 | P145: 0.02043290043
K169: Religious Belief | L169: 2019 | M169: 2018 | N169: 2017 | O169: 2016 | P169: 2015
K170: Atheism | L170: ='2019 Summary'!Z28 -> 0.171054634 | M170: 0.1641418085 | N170: 0.1483746379 | O170: 0.1365795724 | P170: 0.1184415584
K171: Buddhism | L171: ='2019 Summary'!Z29 -> 0.004869882818 | M171: 0.004841480556 | N171: 0.004023173479 | O171: 0.003732609433 | P171: 0.004155844156
K172: Christianity | L172: ='2019 Summary'!Z30 -> 0.4462030132 | M172: 0.4397938466 | N172: 0.4341808819 | O172: 0.4328130302 | P172: 0.4181818182
K173: Hinduism | L173: ='2019 Summary'!Z31 -> 0.007457008066 | M173: 0.00734030923 | N173: 0.006276150628 | O173: 0.006447234476 | P173: 0.004848484848
K174: Islam | L174: ='2019 Summary'!Z32 -> 0.008217927256 | M174: 0.007652662814 | N174: 0.006276150628 | O174: 0.007295554801 | P174: 0.006753246753
K175: Judaism | L175: ='2019 Summary'!Z33 -> 0.0009131030285 | M175: 0.0007808839606 | N175: 0.0006437077567 | O175: 0.0008483203258 | P175: 0.001212121212
K176: Sikhism | L176: ='2019 Summary'!Z34 -> 0.001369654543 | M176: 0.001405591129 | N176: 0.001287415513 | O176: 0.0008483203258 | P176: 0.001038961039
K177: Other | L177: ='2019 Summary'!Z35 -> 0.08339674327 | M177: 0.07793221927 | N177: 0.07627936917 | O177: 0.07346454021 | P177: 0.06718614719
K178: Not Declared | L178: ='2019 Summary'!Z36 -> 0.1523360219 | M178: 0.1511791348 | N178: 0.1709044094 | O178: 0.1895147608 | P178: 0.2297835498
K179: Not Recorded | L179: ='2019 Summary'!Z37 -> 0.1241820119 | M179: 0.1449320631 | N179: 0.1517541036 | O179: 0.148456057 | P179: 0.1482251082
K203: Sexual Orientation | L203: 2019 | M203: 2018 | N203: 2017 | O203: 2016 | P203: 2015
K204: Heterosexual | L204: ='2019 Summary'!M41 -> 0.7636584995 | M204: 0.7421521162 | N204: 0.5991281274 | O204: 0.6564502165 | P204: 0.6969799796
K205: LGB | L205: ='2019 Summary'!M42 -> 0.01841424441 | M205: 0.01764797751 | N205: 0.01175132676 | O205: 0.01316017316 | P205: 0.0145911096
K206: Other | L206: ='2019 Summary'!M43 -> 0.0001521838381 | M206: - | N206: - | O206: - | P206: -
K207: Undecided | L207: ='2019 Summary'!M44 -> 0.0009131030285 | M207: - | N207: - | O207: - | P207: -
K208: Not Declared | L208: ='2019 Summary'!M45 -> 0.08887536144 | M208: 0.0913634234 | N208: 0.09950720243 | O208: 0.09471861472 | P208: 0.09416355616
K209: Not Recorded | L209: ='2019 Summary'!M46 -> 0.1279866078 | M209: 0.1488364829 | N209: 0.2896133434 | O209: 0.2356709957 | P209: 0.1942653546

Sheet A Graph Data (hidden)
B2: Age Band | C2: Value | E2: Percentage | H2: Dividers | I2: 6
A3: Band 1 | B3: 16-25 | C3: ='2019 Data By Pay Band'!H27 -> 4 | E3: =C3/SUM($C$3:$C$8) -> 0.1142857143 | I3: X | J3: Y
B4: 26-35 | C4: ='2019 Data By Pay Band'!H28 -> 9 | E4: 0.2571428571 | H4: 1 | I4: =$I$2*H4+0.5 -> 6.5 | J4: 0
B5: 36-45 | C5: ='2019 Data By Pay Band'!H29 -> 7 | E5: 0.2 | H5: 2 | I5: =$I$2*H5+0.5 -> 12.5 | J5: 0
B6: 46-55 | C6: ='2019 Data By Pay Band'!H30 -> 6 | E6: 0.1714285714 | H6: 3 | I6: =$I$2*H6+0.5 -> 18.5 | J6: 0
B7: 56-65 | C7: ='2019 Data By Pay Band'!H31 -> 6 | E7: 0.1714285714 | H7: 4 | I7: 24.5 | J7: 0
B8: >65 | C8: ='2019 Data By Pay Band'!H32 -> 3 | E8: 0.08571428571 | H8: 5 | I8: 30.5 | J8: 0
A9: Band 2 | B9: 16-25 | D9: ='2019 Data By Pay Band'!I27 -> 333 | F9: =D9/SUM($D$9:$D$14) -> 0.1833700441 | H9: 6 | I9: 36.5 | J9: 0
B10: 26-35 | D10: ='2019 Data By Pay Band'!I28 -> 349 | F10: 0.1921806167 | H10: 7 | I10: 42.5 | J10: 0
B11: 36-45 | D11: ='2019 Data By Pay Band'!I29 -> 329 | F11: 0.1811674009 | H11: 8 | I11: 48.5 | J11: 0
B12: 46-55 | D12: ='2019 Data By Pay Band'!I30 -> 400 | F12: 0.2202643172 | H12: 9 | I12: 54.5 | J12: 0
B13: 56-65 | D13: ='2019 Data By Pay Band'!I31 -> 329 | F13: 0.1811674009 | H13: 10 | I13: 60.5 | J13: 0
B14: >65 | D14: ='2019 Data By Pay Band'!I32 -> 76 | F14: 0.04185022026 | H14: 11 | I14: 66.5 | J14: 0
A15: Band 3 | B15: 16-25 | C15: ='2019 Data By Pay Band'!J27 -> 54 | E15: =C15/SUM($C$15:$C$20) -> 0.08095952024 | H15: 12 | I15: 72.5 | J15: 0
B16: 26-35 | C16: ='2019 Data By Pay Band'!J28 -> 142 | E16: 0.2128935532
B17: 36-45 | C17: ='2019 Data By Pay Band'!J29 -> 117 | E17: 0.1754122939
B18: 46-55 | C18: ='2019 Data By Pay Band'!J30 -> 156 | E18: 0.2338830585
B19: 56-65 | C19: ='2019 Data By Pay Band'!J31 -> 173 | E19: 0.2593703148
B20: >65 | C20: ='2019 Data By Pay Band'!J32 -> 25 | E20: 0.03748125937
A21: Band 4 | B21: 16-25 | D21: ='2019 Data By Pay Band'!K27 -> 38 | F21: =D21/SUM($D$21:$D$26) -> 0.1013333333
B22: 26-35 | D22: ='2019 Data By Pay Band'!K28 -> 117 | F22: 0.312
B23: 36-45 | D23: ='2019 Data By Pay Band'!K29 -> 68 | F23: 0.1813333333
B24: 46-55 | D24: ='2019 Data By Pay Band'!K30 -> 85 | F24: 0.2266666667
B25: 56-65 | D25: ='2019 Data By Pay Band'!K31 -> 60 | F25: 0.16
B26: >65 | D26: ='2019 Data By Pay Band'!K32 -> 7 | F26: 0.01866666667
A27: Band 5 | B27: 16-25 | C27: ='2019 Data By Pay Band'!L27 -> 157 | E27: =C27/SUM($C$27:$C$32) -> 0.1279543602
B28: 26-35 | C28: ='2019 Data By Pay Band'!L28 -> 393 | E28: 0.3202933985
B29: 36-45 | C29: ='2019 Data By Pay Band'!L29 -> 257 | E29: 0.2094539527
B30: 46-55 | C30: ='2019 Data By Pay Band'!L30 -> 257 | E30: 0.2094539527
B31: 56-65 | C31: ='2019 Data By Pay Band'!L31 -> 146 | E31: 0.1189894051
B32: >65 | C32: ='2019 Data By Pay Band'!L32 -> 17 | E32: 0.01385493073
A33: Band 6 | B33: 16-25 | D33: ='2019 Data By Pay Band'!M27 -> 37 | F33: =D33/SUM($D$33:$D$38) -> 0.04166666667
B34: 26-35 | D34: ='2019 Data By Pay Band'!M28 -> 266 | F34: 0.2995495495
B35: 36-45 | D35: ='2019 Data By Pay Band'!M29 -> 229 | F35: 0.2578828829
B36: 46-55 | D36: ='2019 Data By Pay Band'!M30 -> 218 | F36: 0.2454954955
B37: 56-65 | D37: ='2019 Data By Pay Band'!M31 -> 129 | F37: 0.1452702703
B38: >65 | D38: ='2019 Data By Pay Band'!M32 -> 9 | F38: 0.01013513514
A39: Band 7 | B39: 16-25 | C39: ='2019 Data By Pay Band'!N27 -> 2 | E39: =C39/SUM($C$39:$C$44) -> 0.003838771593
B40: 26-35 | C40: ='2019 Data By Pay Band'!N28 -> 98 | E40: 0.1880998081
B41: 36-45 | C41: ='2019 Data By Pay Band'!N29 -> 134 | E41: 0.2571976967
B42: 46-55 | C42: ='2019 Data By Pay Band'!N30 -> 210 | E42: 0.4030710173
B43: 56-65 | C43: ='2019 Data By Pay Band'!N31 -> 74 | E43: 0.1420345489
B44: >65 | C44: ='2019 Data By Pay Band'!N32 -> 3 | E44: 0.00575815739
A45: Band 8 | B45: 16-25 | D45: ='2019 Data By Pay Band'!O27 -> 0 | F45: =D45/SUM($D$45:$D$50) -> 0
B46: 26-35 | D46: ='2019 Data By Pay Band'!O28 -> 30 | F46: 0.1204819277
B47: 36-45 | D47: ='2019 Data By Pay Band'!O29 -> 78 | F47: 0.313253012
B48: 46-55 | D48: ='2019 Data By Pay Band'!O30 -> 94 | F48: 0.3775100402
B49: 56-65 | D49: ='2019 Data By Pay Band'!O31 -> 44 | F49: 0.1767068273
B50: >65 | D50: ='2019 Data By Pay Band'!O32 -> 3 | F50: 0.01204819277
A51: Band 9 | B51: 16-25 | C51: ='2019 Data By Pay Band'!P27 -> 0 | E51: =C51/SUM($C$51:$C$56) -> 0
B52: 26-35 | C52: ='2019 Data By Pay Band'!P28 -> 0 | E52: 0
B53: 36-45 | C53: ='2019 Data By Pay Band'!P29 -> 2 | E53: 0.25
B54: 46-55 | C54: ='2019 Data By Pay Band'!P30 -> 4 | E54: 0.5
B55: 56-65 | C55: ='2019 Data By Pay Band'!P31 -> 2 | E55: 0.25
B56: >65 | C56: ='2019 Data By Pay Band'!P32 -> 0 | E56: 0
A57: Trainee Grade Doctor | B57: 16-25 | D57: ='2019 Data By Pay Band'!Q27 -> 47 | F57: =D57/SUM($D$57:$D$62) -> 0.1151960784
B58: 26-35 | D58: ='2019 Data By Pay Band'!Q28 -> 278 | F58: 0.681372549
B59: 36-45 | D59: ='2019 Data By Pay Band'!Q29 -> 60 | F59: 0.1470588235
B60: 46-55 | D60: ='2019 Data By Pay Band'!Q30 -> 17 | F60: 0.04166666667
B61: 56-65 | D61: ='2019 Data By Pay Band'!Q31 -> 4 | F61: 0.009803921569
B62: >65 | D62: ='2019 Data By Pay Band'!Q32 -> 2 | F62: 0.004901960784
A63: Career Grade Doctor | B63: 16-25 | C63: ='2019 Data By Pay Band'!R27 -> 0 | E63: =C63/SUM($C$63:$C$68) -> 0
B64: 26-35 | C64: ='2019 Data By Pay Band'!R28 -> 5 | E64: 0.078125
B65: 36-45 | C65: ='2019 Data By Pay Band'!R29 -> 15 | E65: 0.234375
B66: 46-55 | C66: ='2019 Data By Pay Band'!R30 -> 25 | E66: 0.390625
B67: 56-65 | C67: ='2019 Data By Pay Band'!R31 -> 18 | E67: 0.28125
B68: >65 | C68: ='2019 Data By Pay Band'!R32 -> 1 | E68: 0.015625
A69: Consultant | B69: 16-25 | D69: ='2019 Data By Pay Band'!S27 -> 0 | F69: =D69/SUM($D$69:$D$74) -> 0
B70: 26-35 | D70: ='2019 Data By Pay Band'!S28 -> 17 | F70: =D70/SUM($D$45:$D$50) -> 0.06827309237
B71: 36-45 | D71: ='2019 Data By Pay Band'!S29 -> 112 | F71: =D71/SUM($D$45:$D$50) -> 0.4497991968
B72: 46-55 | D72: ='2019 Data By Pay Band'!S30 -> 98 | F72: =D72/SUM($D$45:$D$50) -> 0.3935742972
B73: 56-65 | D73: ='2019 Data By Pay Band'!S31 -> 44 | F73: =D73/SUM($D$45:$D$50) -> 0.1767068273
B74: >65 | D74: ='2019 Data By Pay Band'!S32 -> 4 | F74: =D74/SUM($D$45:$D$50) -> 0.01606425703
A75: Other | B75: 16-25 | C75: ='2019 Data By Pay Band'!T27 -> 0 | E75: =C75/SUM($C$75:$C$80) -> 0
B76: 26-35 | C76: ='2019 Data By Pay Band'!T28 -> 2 | E76: 0.05263157895
B77: 36-45 | C77: ='2019 Data By Pay Band'!T29 -> 4 | E77: 0.1052631579
B78: 46-55 | C78: ='2019 Data By Pay Band'!T30 -> 14 | E78: 0.3684210526
B79: 56-65 | C79: ='2019 Data By Pay Band'!T31 -> 12 | E79: 0.3157894737
B80: >65 | C80: ='2019 Data By Pay Band'!T32 -> 6 | E80: 0.1578947368

Sheet D Graph Data (hidden)
B2: Disability | C2: Value | E2: Percentage | H2: Dividers | I2: 4
A3: Band 1 | B3: Y | C3: ='2019 Data By Pay Band'!H57 -> 5 | E3: =C3/SUM($C$3:$C$6) -> 0.1428571429 | I3: X | J3: Y
B4: N | C4: ='2019 Data By Pay Band'!H58 -> 21 | E4: =C4/SUM($C$3:$C$6) -> 0.6 | H4: 1 | I4: =$I$2*H4+0.5 -> 4.5 | J4: 0
B5: ND | C5: ='2019 Data By Pay Band'!H59 -> 0 | E5: =C5/SUM($C$3:$C$6) -> 0 | H5: 2 | I5: =$I$2*H5+0.5 -> 8.5 | J5: 0
B6: NR | C6: ='2019 Data By Pay Band'!H60 -> 9 | E6: =C6/SUM($C$3:$C$6) -> 0.2571428571 | H6: 3 | I6: =$I$2*H6+0.5 -> 12.5 | J6: 0
A7: Band 2 | B7: Y | D7: ='2019 Data By Pay Band'!I57 -> 80 | F7: =D7/SUM($D$7:$D$10) -> 0.04405286344 | H7: 4 | I7: 16.5 | J7: 0
B8: N | D8: ='2019 Data By Pay Band'!I58 -> 1412 | F8: =D8/SUM($D$7:$D$10) -> 0.7775330396 | H8: 5 | I8: 20.5 | J8: 0
B9: ND | D9: ='2019 Data By Pay Band'!I59 -> 13 | F9: =D9/SUM($D$7:$D$10) -> 0.007158590308 | H9: 6 | I9: 24.5 | J9: 0
B10: NR | D10: ='2019 Data By Pay Band'!I60 -> 311 | F10: =D10/SUM($D$7:$D$10) -> 0.1712555066 | H10: 7 | I10: 28.5 | J10: 0
A11: Band 3 | B11: Y | C11: ='2019 Data By Pay Band'!J57 -> 27 | E11: =C11/SUM($C$11:$C$14) -> 0.04047976012 | H11: 8 | I11: 32.5 | J11: 0
B12: N | C12: ='2019 Data By Pay Band'!J58 -> 504 | E12: =C12/SUM($C$11:$C$14) -> 0.7556221889 | H12: 9 | I12: 36.5 | J12: 0
B13: ND | C13: ='2019 Data By Pay Band'!J59 -> 10 | E13: =C13/SUM($C$11:$C$14) -> 0.01499250375 | H13: 10 | I13: 40.5 | J13: 0
B14: NR | C14: ='2019 Data By Pay Band'!J60 -> 126 | E14: =C14/SUM($C$11:$C$14) -> 0.1889055472 | H14: 11 | I14: 44.5 | J14: 0
A15: Band 4 | B15: Y | D15: ='2019 Data By Pay Band'!K57 -> 15 | F15: =D15/SUM($D$15:$D$18) -> 0.04 | H15: 12 | I15: 48.5 | J15: 0
B16: N | D16: ='2019 Data By Pay Band'!K58 -> 286 | F16: =D16/SUM($D$15:$D$18) -> 0.7626666667
B17: ND | D17: ='2019 Data By Pay Band'!K59 -> 7 | F17: =D17/SUM($D$15:$D$18) -> 0.01866666667
B18: NR | D18: ='2019 Data By Pay Band'!K60 -> 67 | F18: =D18/SUM($D$15:$D$18) -> 0.1786666667
A19: Band 5 | B19: Y | C19: ='2019 Data By Pay Band'!L57 -> 33 | E19: =C19/SUM($C$19:$C$22) -> 0.02689486553
B20: N | C20: ='2019 Data By Pay Band'!L58 -> 977 | E20: =C20/SUM($C$19:$C$22) -> 0.7962510187
B21: ND | C21: ='2019 Data By Pay Band'!L59 -> 17 | E21: =C21/SUM($C$19:$C$22) -> 0.01385493073
B22: NR | C22: ='2019 Data By Pay Band'!L60 -> 200 | E22: =C22/SUM($C$19:$C$22) -> 0.162999185
A23: Band 6 | B23: Y | D23: ='2019 Data By Pay Band'!M57 -> 26 | F23: =D23/SUM($D$23:$D$26) -> 0.02927927928
B24: N | D24: ='2019 Data By Pay Band'!M58 -> 686 | F24: =D24/SUM($D$23:$D$26) -> 0.7725225225
B25: ND | D25: ='2019 Data By Pay Band'!M59 -> 24 | F25: =D25/SUM($D$23:$D$26) -> 0.02702702703
B26: NR | D26: ='2019 Data By Pay Band'!M60 -> 152 | F26: =D26/SUM($D$23:$D$26) -> 0.1711711712
A27: Band 7 | B27: Y | C27: ='2019 Data By Pay Band'!N57 -> 16 | E27: =C27/SUM($C$27:$C$30) -> 0.03071017274
B28: N | C28: ='2019 Data By Pay Band'!N58 -> 341 | E28: =C28/SUM($C$27:$C$30) -> 0.6545105566
B29: ND | C29: ='2019 Data By Pay Band'!N59 -> 6 | E29: =C29/SUM($C$27:$C$30) -> 0.01151631478
B30: NR | C30: ='2019 Data By Pay Band'!N60 -> 158 | E30: =C30/SUM($C$27:$C$30) -> 0.3032629559
A31: Band 8 | B31: Y | D31: ='2019 Data By Pay Band'!O57 -> 4 | F31: =D31/SUM($D$31:$D$34) -> 0.01606425703
B32: N | D32: ='2019 Data By Pay Band'!O58 -> 182 | F32: =D32/SUM($D$31:$D$34) -> 0.7309236948
B33: ND | D33: ='2019 Data By Pay Band'!O59 -> 0 | F33: =D33/SUM($D$31:$D$34) -> 0
B34: NR | D34: ='2019 Data By Pay Band'!O60 -> 63 | F34: =D34/SUM($D$31:$D$34) -> 0.2530120482
A35: Band 9 | B35: Y | C35: ='2019 Data By Pay Band'!P57 -> 0 | E35: =C35/SUM($C$35:$C$38) -> 0
B36: N | C36: ='2019 Data By Pay Band'!P58 -> 6 | E36: =C36/SUM($C$35:$C$38) -> 0.75
B37: ND | C37: ='2019 Data By Pay Band'!P59 -> 0 | E37: =C37/SUM($C$35:$C$38) -> 0
B38: NR | C38: ='2019 Data By Pay Band'!P60 -> 2 | E38: =C38/SUM($C$35:$C$38) -> 0.25
A39: Trainee Grade Doctor | B39: Y | D39: ='2019 Data By Pay Band'!Q57 -> 3 | F39: =D39/SUM($D$39:$D$42) -> 0.007352941176
B40: N | D40: ='2019 Data By Pay Band'!Q58 -> 387 | F40: =D40/SUM($D$39:$D$42) -> 0.9485294118
B41: ND | D41: ='2019 Data By Pay Band'!Q59 -> 13 | F41: =D41/SUM($D$39:$D$42) -> 0.0318627451
B42: NR | D42: ='2019 Data By Pay Band'!Q60 -> 5 | F42: =D42/SUM($D$39:$D$42) -> 0.01225490196
A43: Career Grade Doctor | B43: Y | C43: ='2019 Data By Pay Band'!R57 -> 0 | E43: =C43/SUM($C$43:$C$46) -> 0
B44: N | C44: ='2019 Data By Pay Band'!R58 -> 28 | E44: =C44/SUM($C$43:$C$46) -> 0.4375
B45: ND | C45: ='2019 Data By Pay Band'!R59 -> 1 | E45: =C45/SUM($C$43:$C$46) -> 0.015625
B46: NR | C46: ='2019 Data By Pay Band'!R60 -> 35 | E46: =C46/SUM($C$43:$C$46) -> 0.546875
A47: Consultant | B47: Y | D47: ='2019 Data By Pay Band'!S57 -> 0 | F47: =D47/SUM($D$47:$D$50) -> 0
B48: N | D48: ='2019 Data By Pay Band'!S58 -> 182 | F48: =D48/SUM($D$31:$D$34) -> 0.7309236948
B49: ND | D49: ='2019 Data By Pay Band'!S59 -> 0 | F49: =D49/SUM($D$31:$D$34) -> 0
B50: NR | D50: ='2019 Data By Pay Band'!S60 -> 93 | F50: =D50/SUM($D$31:$D$34) -> 0.3734939759
A51: Other | B51: Y | C51: ='2019 Data By Pay Band'!T57 -> 1 | E51: =C51/SUM($C$51:$C$54) -> 0.02631578947
B52: N | C52: ='2019 Data By Pay Band'!T58 -> 23 | E52: =C52/SUM($C$51:$C$54) -> 0.6052631579
B53: ND | C53: ='2019 Data By Pay Band'!T59 -> 1 | E53: =C53/SUM($C$51:$C$54) -> 0.02631578947
B54: NR | C54: ='2019 Data By Pay Band'!T60 -> 13 | E54: =C54/SUM($C$51:$C$54) -> 0.3421052632

Sheet E Graph Data (hidden)
B2: Ethnicity | C2: Value | E2: Percentage | H2: Dividers | I2: 4
A3: Band 1 | B3: WB | C3: ='2019 Data By Pay Band'!H85 -> 15 | E3: =C3/SUM($C$3:$C$6) -> 0.4285714286 | I3: X | J3: Y
B4: WO | C4: ='2019 Data By Pay Band'!H86 -> 11 | E4: =C4/SUM($C$3:$C$6) -> 0.3142857143 | H4: 1 | I4: =$I$2*H4+0.5 -> 4.5 | J4: 0
B5: BME | C5: ='2019 Data By Pay Band'!H87 -> 9 | E5: =C5/SUM($C$3:$C$6) -> 0.2571428571 | H5: 2 | I5: =$I$2*H5+0.5 -> 8.5 | J5: 0
B6: NR | C6: ='2019 Data By Pay Band'!H88 -> 0 | E6: =C6/SUM($C$3:$C$6) -> 0 | H6: 3 | I6: =$I$2*H6+0.5 -> 12.5 | J6: 0
A7: Band 2 | B7: WB | D7: ='2019 Data By Pay Band'!I85 -> 1327 | F7: =D7/SUM($D$7:$D$10) -> 0.7307268722 | H7: 4 | I7: 16.5 | J7: 0
B8: WO | D8: ='2019 Data By Pay Band'!I86 -> 206 | F8: =D8/SUM($D$7:$D$10) -> 0.1134361233 | H8: 5 | I8: 20.5 | J8: 0
B9: BME | D9: ='2019 Data By Pay Band'!I87 -> 261 | F9: =D9/SUM($D$7:$D$10) -> 0.143722467 | H9: 6 | I9: 24.5 | J9: 0
B10: NR | D10: ='2019 Data By Pay Band'!I88 -> 22 | F10: =D10/SUM($D$7:$D$10) -> 0.01211453744 | H10: 7 | I10: 28.5 | J10: 0
A11: Band 3 | B11: WB | C11: ='2019 Data By Pay Band'!J85 -> 582 | E11: =C11/SUM($C$11:$C$14) -> 0.8725637181 | H11: 8 | I11: 32.5 | J11: 0
B12: WO | C12: ='2019 Data By Pay Band'!J86 -> 43 | E12: =C12/SUM($C$11:$C$14) -> 0.06446776612 | H12: 9 | I12: 36.5 | J12: 0
B13: BME | C13: ='2019 Data By Pay Band'!J87 -> 34 | E13: =C13/SUM($C$11:$C$14) -> 0.05097451274 | H13: 10 | I13: 40.5 | J13: 0
B14: NR | C14: ='2019 Data By Pay Band'!J88 -> 8 | E14: =C14/SUM($C$11:$C$14) -> 0.011994003 | H14: 11 | I14: 44.5 | J14: 0
A15: Band 4 | B15: WB | D15: ='2019 Data By Pay Band'!K85 -> 301 | F15: =D15/SUM($D$15:$D$18) -> 0.8026666667 | H15: 12 | I15: 48.5 | J15: 0
B16: WO | D16: ='2019 Data By Pay Band'!K86 -> 23 | F16: =D16/SUM($D$15:$D$18) -> 0.06133333333
B17: BME | D17: ='2019 Data By Pay Band'!K87 -> 48 | F17: =D17/SUM($D$15:$D$18) -> 0.128
B18: NR | D18: ='2019 Data By Pay Band'!K88 -> 3 | F18: =D18/SUM($D$15:$D$18) -> 0.008
A19: Band 5 | B19: WB | C19: ='2019 Data By Pay Band'!L85 -> 842 | E19: =C19/SUM($C$19:$C$22) -> 0.6862265689
B20: WO | C20: ='2019 Data By Pay Band'!L86 -> 123 | E20: =C20/SUM($C$19:$C$22) -> 0.1002444988
B21: BME | C21: ='2019 Data By Pay Band'!L87 -> 247 | E21: =C21/SUM($C$19:$C$22) -> 0.2013039935
B22: NR | C22: ='2019 Data By Pay Band'!L88 -> 15 | E22: =C22/SUM($C$19:$C$22) -> 0.01222493888
A23: Band 6 | B23: WB | D23: ='2019 Data By Pay Band'!M85 -> 732 | F23: =D23/SUM($D$23:$D$26) -> 0.8243243243
B24: WO | D24: ='2019 Data By Pay Band'!M86 -> 84 | F24: =D24/SUM($D$23:$D$26) -> 0.09459459459
B25: BME | D25: ='2019 Data By Pay Band'!M87 -> 65 | F25: =D25/SUM($D$23:$D$26) -> 0.0731981982
B26: NR | D26: ='2019 Data By Pay Band'!M88 -> 7 | F26: =D26/SUM($D$23:$D$26) -> 0.007882882883
A27: Band 7 | B27: WB | C27: ='2019 Data By Pay Band'!N85 -> 447 | E27: =C27/SUM($C$27:$C$30) -> 0.8579654511
B28: WO | C28: ='2019 Data By Pay Band'!N86 -> 38 | E28: =C28/SUM($C$27:$C$30) -> 0.07293666027
B29: BME | C29: ='2019 Data By Pay Band'!N87 -> 30 | E29: =C29/SUM($C$27:$C$30) -> 0.0575815739
B30: NR | C30: ='2019 Data By Pay Band'!N88 -> 6 | E30: =C30/SUM($C$27:$C$30) -> 0.01151631478
A31: Band 8 | B31: WB | D31: ='2019 Data By Pay Band'!O85 -> 217 | F31: =D31/SUM($D$31:$D$34) -> 0.8714859438
B32: WO | D32: ='2019 Data By Pay Band'!O86 -> 20 | F32: =D32/SUM($D$31:$D$34) -> 0.08032128514
B33: BME | D33: ='2019 Data By Pay Band'!O87 -> 10 | F33: =D33/SUM($D$31:$D$34) -> 0.04016064257
B34: NR | D34: ='2019 Data By Pay Band'!O88 -> 2 | F34: =D34/SUM($D$31:$D$34) -> 0.008032128514
A35: Band 9 | B35: WB | C35: ='2019 Data By Pay Band'!P85 -> 6 | E35: =C35/SUM($C$35:$C$38) -> 0.75
B36: WO | C36: ='2019 Data By Pay Band'!P86 -> 2 | E36: =C36/SUM($C$35:$C$38) -> 0.25
B37: BME | C37: ='2019 Data By Pay Band'!P87 -> 0 | E37: =C37/SUM($C$35:$C$38) -> 0
B38: NR | C38: ='2019 Data By Pay Band'!P88 -> 0 | E38: =C38/SUM($C$35:$C$38) -> 0
A39: Trainee Grade Doctor | B39: WB | D39: ='2019 Data By Pay Band'!Q85 -> 282 | F39: =D39/SUM($D$39:$D$42) -> 0.6911764706
B40: WO | D40: ='2019 Data By Pay Band'!Q86 -> 54 | F40: =D40/SUM($D$39:$D$42) -> 0.1323529412
B41: BME | D41: ='2019 Data By Pay Band'!Q87 -> 62 | F41: =D41/SUM($D$39:$D$42) -> 0.1519607843
B42: NR | D42: ='2019 Data By Pay Band'!Q88 -> 10 | F42: =D42/SUM($D$39:$D$42) -> 0.02450980392
A43: Career Grade Doctor | B43: WB | C43: ='2019 Data By Pay Band'!R85 -> 37 | E43: =C43/SUM($C$43:$C$46) -> 0.578125
B44: WO | C44: ='2019 Data By Pay Band'!R86 -> 7 | E44: =C44/SUM($C$43:$C$46) -> 0.109375
B45: BME | C45: ='2019 Data By Pay Band'!R87 -> 20 | E45: =C45/SUM($C$43:$C$46) -> 0.3125
B46: NR | C46: ='2019 Data By Pay Band'!R88 -> 0 | E46: =C46/SUM($C$43:$C$46) -> 0
A47: Consultant | B47: WB | D47: ='2019 Data By Pay Band'!S85 -> 214 | F47: =D47/SUM($D$47:$D$50) -> 0.7781818182
B48: WO | D48: ='2019 Data By Pay Band'!S86 -> 22 | F48: =D48/SUM($D$31:$D$34) -> 0.08835341365
B49: BME | D49: ='2019 Data By Pay Band'!S87 -> 37 | F49: =D49/SUM($D$31:$D$34) -> 0.1485943775
B50: NR | D50: ='2019 Data By Pay Band'!S88 -> 2 | F50: =D50/SUM($D$31:$D$34) -> 0.008032128514
A51: Other | B51: WB | C51: ='2019 Data By Pay Band'!T85 -> 30 | E51: =C51/SUM($C$51:$C$54) -> 0.7894736842
B52: WO | C52: ='2019 Data By Pay Band'!T86 -> 2 | E52: =C52/SUM($C$51:$C$54) -> 0.05263157895
B53: BME | C53: ='2019 Data By Pay Band'!T87 -> 0 | E53: =C53/SUM($C$51:$C$54) -> 0
B54: NR | C54: ='2019 Data By Pay Band'!T88 -> 6 | E54: =C54/SUM($C$51:$C$54) -> 0.1578947368

Sheet G Graph Data (hidden)
B2: Gender | C2: Value | E2: Percentage | H2: Dividers | I2: 2
A3: Band 1 | B3: F | C3: ='2019 Data By Pay Band'!H113 -> 18 | E3: =C3/SUM($C$3:$C$4) -> 0.5142857143 | I3: X | J3: Y
B4: M | C4: ='2019 Data By Pay Band'!H114 -> 17 | E4: =C4/SUM($C$3:$C$4) -> 0.4857142857 | H4: 1 | I4: =$I$2*H4+0.5 -> 2.5 | J4: 0
A5: Band 2 | B5: F | D5: ='2019 Data By Pay Band'!I113 -> 1354 | F5: =D5/SUM($D$5:$D$6) -> 0.7455947137 | H5: 2 | I5: =$I$2*H5+0.5 -> 4.5 | J5: 0
B6: M | D6: ='2019 Data By Pay Band'!I114 -> 462 | F6: =D6/SUM($D$5:$D$6) -> 0.2544052863 | H6: 3 | I6: =$I$2*H6+0.5 -> 6.5 | J6: 0
A7: Band 3 | B7: F | C7: ='2019 Data By Pay Band'!J113 -> 560 | E7: =C7/SUM($C$7:$C$8) -> 0.8395802099 | H7: 4 | I7: 8.5 | J7: 0
B8: M | C8: ='2019 Data By Pay Band'!J114 -> 107 | E8: =C8/SUM($C$7:$C$8) -> 0.1604197901 | H8: 5 | I8: 10.5 | J8: 0
A9: Band 4 | B9: F | D9: ='2019 Data By Pay Band'!K113 -> 306 | F9: =D9/SUM($D$9:$D$10) -> 0.816 | H9: 6 | I9: 12.5 | J9: 0
B10: M | D10: ='2019 Data By Pay Band'!K114 -> 69 | F10: =D10/SUM($D$9:$D$10) -> 0.184 | H10: 7 | I10: 14.5 | J10: 0
A11: Band 5 | B11: F | C11: ='2019 Data By Pay Band'!L113 -> 1053 | E11: =C11/SUM($C$11:$C$12) -> 0.858190709 | H11: 8 | I11: 16.5 | J11: 0
B12: M | C12: ='2019 Data By Pay Band'!L114 -> 174 | E12: =C12/SUM($C$11:$C$12) -> 0.141809291 | H12: 9 | I12: 18.5 | J12: 0
A13: Band 6 | B13: F | D13: ='2019 Data By Pay Band'!M113 -> 768 | F13: =D13/SUM($D$13:$D$14) -> 0.8648648649 | H13: 10 | I13: 20.5 | J13: 0
B14: M | D14: ='2019 Data By Pay Band'!M114 -> 120 | F14: =D14/SUM($D$13:$D$14) -> 0.1351351351 | H14: 11 | I14: 22.5 | J14: 0
A15: Band 7 | B15: F | C15: ='2019 Data By Pay Band'!N113 -> 427 | E15: =C15/SUM($C$15:$C$16) -> 0.8195777351 | H15: 12 | I15: 24.5 | J15: 0
B16: M | C16: ='2019 Data By Pay Band'!N114 -> 94 | E16: =C16/SUM($C$15:$C$16) -> 0.1804222649
A17: Band 8 | B17: F | D17: ='2019 Data By Pay Band'!O113 -> 177 | F17: =D17/SUM($D$17:$D$18) -> 0.7108433735
B18: M | D18: ='2019 Data By Pay Band'!O114 -> 72 | F18: =D18/SUM($D$17:$D$18) -> 0.2891566265
A19: Band 9 | B19: F | C19: ='2019 Data By Pay Band'!P113 -> 5 | E19: =C19/SUM($C$19:$C$20) -> 0.625
B20: M | C20: ='2019 Data By Pay Band'!P114 -> 3 | E20: =C20/SUM($C$19:$C$20) -> 0.375
A21: Trainee Grade Doctor | B21: F | D21: ='2019 Data By Pay Band'!Q113 -> 237 | F21: =D21/SUM($D$21:$D$22) -> 0.5808823529
B22: M | D22: ='2019 Data By Pay Band'!Q114 -> 171 | F22: =D22/SUM($D$21:$D$22) -> 0.4191176471
A23: Career Grade Doctor | B23: F | C23: ='2019 Data By Pay Band'!R113 -> 35 | E23: =C23/SUM($C$23:$C$24) -> 0.546875
B24: M | C24: ='2019 Data By Pay Band'!R114 -> 29 | E24: =C24/SUM($C$23:$C$24) -> 0.453125
A25: Consultant | B25: F | D25: ='2019 Data By Pay Band'!S113 -> 101 | F25: =D25/SUM($D$25:$D$26) -> 0.3672727273
B26: M | D26: ='2019 Data By Pay Band'!S114 -> 174 | F26: =D26/SUM($D$17:$D$18) -> 0.6987951807
A27: Other | B27: F | C27: ='2019 Data By Pay Band'!T113 -> 21 | E27: =C27/SUM($C$27:$C$28) -> 0.5526315789
B28: M | C28: ='2019 Data By Pay Band'!T114 -> 17 | E28: =C28/SUM($C$27:$C$28) -> 0.4473684211

Sheet RB Graph Data (hidden)
B2: Religious Belief | C2: Value | E2: Percentage | H2: Dividers | I2: 10
A3: Band 1 | B3: A | C3: ='2019 Data By Pay Band'!H172 -> 0 | E3: =C3/SUM($C$3:$C$12) -> 0 | I3: X | J3: Y
B4: B | C4: ='2019 Data By Pay Band'!H173 -> 0 | E4: =C4/SUM($C$3:$C$12) -> 0 | H4: 1 | I4: =$I$2*H4+0.5 -> 10.5 | J4: 0
B5: C | C5: ='2019 Data By Pay Band'!H174 -> 21 | E5: 0.6 | H5: 2 | I5: =$I$2*H5+0.5 -> 20.5 | J5: 0
B6: H | C6: ='2019 Data By Pay Band'!H175 -> 0 | E6: 0 | H6: 3 | I6: =$I$2*H6+0.5 -> 30.5 | J6: 0
B7: I | C7: ='2019 Data By Pay Band'!H176 -> 1 | E7: 0.02857142857 | H7: 4 | I7: 40.5 | J7: 0
B8: J | C8: ='2019 Data By Pay Band'!H177 -> 0 | E8: 0 | H8: 5 | I8: 50.5 | J8: 0
B9: S | C9: ='2019 Data By Pay Band'!H178 -> 0 | E9: 0 | H9: 6 | I9: 60.5 | J9: 0
B10: O | C10: ='2019 Data By Pay Band'!H179 -> 0 | E10: 0 | H10: 7 | I10: 70.5 | J10: 0
B11: ND | C11: ='2019 Data By Pay Band'!H180 -> 6 | E11: 0.1714285714 | H11: 8 | I11: 80.5 | J11: 0
B12: NR | C12: ='2019 Data By Pay Band'!H181 -> 7 | E12: 0.2 | H12: 9 | I12: 90.5 | J12: 0
A13: Band 2 | B13: A | D13: ='2019 Data By Pay Band'!I172 -> 288 | F13: =D13/SUM($D$13:$D$22) -> 0.1585903084 | H13: 10 | I13: 100.5 | J13: 0
B14: B | D14: ='2019 Data By Pay Band'!I173 -> 17 | F14: 0.00936123348 | H14: 11 | I14: 110.5 | J14: 0
B15: C | D15: ='2019 Data By Pay Band'!I174 -> 824 | F15: 0.4537444934 | H15: 12 | I15: 120.5 | J15: 0
B16: H | D16: ='2019 Data By Pay Band'!I175 -> 11 | F16: 0.006057268722
B17: I | D17: ='2019 Data By Pay Band'!I176 -> 16 | F17: 0.008810572687
B18: J | D18: ='2019 Data By Pay Band'!I177 -> 0 | F18: 0
B19: S | D19: ='2019 Data By Pay Band'!I178 -> 1 | F19: 0.000550660793
B20: O | D20: ='2019 Data By Pay Band'!I179 -> 190 | F20: 0.1046255507
B21: ND | D21: ='2019 Data By Pay Band'!I180 -> 246 | F21: 0.1354625551
B22: NR | D22: ='2019 Data By Pay Band'!I181 -> 223 | F22: 0.1227973568
A23: Band 3 | B23: A | C23: ='2019 Data By Pay Band'!J172 -> 117 | E23: =C23/SUM($C$23:$C$32) -> 0.1754122939
B24: B | C24: ='2019 Data By Pay Band'!J173 -> 2 | E24: =C24/SUM($C$23:$C$32) -> 0.00299850075
B25: C | C25: ='2019 Data By Pay Band'!J174 -> 301 | E25: 0.4512743628
B26: H | C26: ='2019 Data By Pay Band'!J175 -> 0 | E26: 0
B27: I | C27: ='2019 Data By Pay Band'!J176 -> 4 | E27: 0.005997001499
B28: J | C28: ='2019 Data By Pay Band'!J177 -> 0 | E28: 0
B29: S | C29: ='2019 Data By Pay Band'!J178 -> 0 | E29: 0
B30: O | C30: ='2019 Data By Pay Band'!J179 -> 73 | E30: 0.1094452774
B31: ND | C31: ='2019 Data By Pay Band'!J180 -> 100 | E31: 0.1499250375
B32: NR | C32: ='2019 Data By Pay Band'!J181 -> 70 | E32: 0.1049475262
A33: Band 4 | B33: A | D33: ='2019 Data By Pay Band'!K172 -> 75 | F33: =D33/SUM($D$33:$D$42) -> 0.2
B34: B | D34: ='2019 Data By Pay Band'!K173 -> 0 | F34: 0
B35: C | D35: ='2019 Data By Pay Band'!K174 -> 177 | F35: 0.472
B36: H | D36: ='2019 Data By Pay Band'!K175 -> 1 | F36: 0.002666666667
B37: I | D37: ='2019 Data By Pay Band'!K176 -> 1 | F37: 0.002666666667
B38: J | D38: ='2019 Data By Pay Band'!K177 -> 1 | F38: 0.002666666667
B39: S | D39: ='2019 Data By Pay Band'!K178 -> 0 | F39: 0
B40: O | D40: ='2019 Data By Pay Band'!K179 -> 36 | F40: 0.096
B41: ND | D41: ='2019 Data By Pay Band'!K180 -> 44 | F41: 0.1173333333
B42: NR | D42: ='2019 Data By Pay Band'!K181 -> 40 | F42: 0.1066666667
A43: Band 5 | B43: A | C43: ='2019 Data By Pay Band'!L172 -> 214 | E43: =C43/SUM($C$43:$C$52) -> 0.174409128
B44: B | C44: ='2019 Data By Pay Band'!L173 -> 6 | E44: =C44/SUM($C$43:$C$52) -> 0.00488997555
B45: C | C45: ='2019 Data By Pay Band'!L174 -> 588 | E45: 0.4792176039
B46: H | C46: ='2019 Data By Pay Band'!L175 -> 8 | E46: 0.0065199674
B47: I | C47: ='2019 Data By Pay Band'!L176 -> 8 | E47: 0.0065199674
B48: J | C48: ='2019 Data By Pay Band'!L177 -> 2 | E48: 0.00162999185
B49: S | C49: ='2019 Data By Pay Band'!L178 -> 1 | E49: 0.000814995925
B50: O | C50: ='2019 Data By Pay Band'!L179 -> 96 | E50: 0.0782396088
B51: ND | C51: ='2019 Data By Pay Band'!L180 -> 168 | E51: 0.1369193154
B52: NR | C52: ='2019 Data By Pay Band'!L181 -> 136 | E52: 0.1108394458
A53: Band 6 | B53: A | D53: ='2019 Data By Pay Band'!M172 -> 139 | F53: =D53/SUM($D$53:$D$62) -> 0.1565315315
B54: B | D54: ='2019 Data By Pay Band'!M173 -> 2 | F54: 0.002252252252
B55: C | D55: ='2019 Data By Pay Band'!M174 -> 439 | F55: 0.4943693694
B56: H | D56: ='2019 Data By Pay Band'!M175 -> 4 | F56: 0.004504504505
B57: I | D57: ='2019 Data By Pay Band'!M176 -> 4 | F57: 0.004504504505
B58: J | D58: ='2019 Data By Pay Band'!M177 -> 1 | F58: 0.001126126126
B59: S | D59: ='2019 Data By Pay Band'!M178 -> 1 | F59: 0.001126126126
B60: O | D60: ='2019 Data By Pay Band'!M179 -> 65 | F60: 0.0731981982
B61: ND | D61: ='2019 Data By Pay Band'!M180 -> 154 | F61: 0.1734234234
B62: NR | D62: ='2019 Data By Pay Band'!M181 -> 79 | F62: 0.08896396396
A63: Band 7 | B63: A | C63: ='2019 Data By Pay Band'!N172 -> 82 | E63: =C63/SUM($C$63:$C$72) -> 0.1573896353
B64: B | C64: ='2019 Data By Pay Band'!N173 -> 1 | E64: =C64/SUM($C$63:$C$72) -> 0.001919385797
B65: C | C65: ='2019 Data By Pay Band'!N174 -> 215 | E65: 0.4126679463
B66: H | C66: ='2019 Data By Pay Band'!N175 -> 3 | E66: 0.00575815739
B67: I | C67: ='2019 Data By Pay Band'!N176 -> 0 | E67: 0
B68: J | C68: ='2019 Data By Pay Band'!N177 -> 1 | E68: 0.001919385797
B69: S | C69: ='2019 Data By Pay Band'!N178 -> 0 | E69: 0
B70: O | C70: ='2019 Data By Pay Band'!N179 -> 33 | E70: 0.06333973129
B71: ND | C71: ='2019 Data By Pay Band'!N180 -> 95 | E71: 0.1823416507
B72: NR | C72: ='2019 Data By Pay Band'!N181 -> 91 | E72: 0.1746641075
A73: Band 8 | B73: A | D73: ='2019 Data By Pay Band'!O172 -> 37 | F73: =D73/SUM($D$73:$D$82) -> 0.1485943775
B74: B | D74: ='2019 Data By Pay Band'!O173 -> 0 | F74: 0
B75: C | D75: ='2019 Data By Pay Band'!O174 -> 118 | F75: 0.4738955823
B76: H | D76: ='2019 Data By Pay Band'!O175 -> 2 | F76: 0.008032128514
B77: I | D77: ='2019 Data By Pay Band'!O176 -> 1 | F77: 0.004016064257
B78: J | D78: ='2019 Data By Pay Band'!O177 -> 0 | F78: 0
B79: S | D79: ='2019 Data By Pay Band'!O178 -> 1 | F79: 0.004016064257
B80: O | D80: ='2019 Data By Pay Band'!O179 -> 12 | F80: 0.04819277108
B81: ND | D81: ='2019 Data By Pay Band'!O180 -> 41 | F81: 0.1646586345
B82: NR | D82: ='2019 Data By Pay Band'!O181 -> 37 | F82: 0.1485943775
A83: Band 9 | B83: A | C83: ='2019 Data By Pay Band'!P172 -> 0 | E83: =C83/SUM($C$83:$C$92) -> 0
B84: B | C84: ='2019 Data By Pay Band'!P173 -> 0 | E84: =C84/SUM($C$83:$C$92) -> 0
B85: C | C85: ='2019 Data By Pay Band'!P174 -> 3 | E85: 0.375
B86: H | C86: ='2019 Data By Pay Band'!P175 -> 0 | E86: 0
B87: I | C87: ='2019 Data By Pay Band'!P176 -> 0 | E87: 0
B88: J | C88: ='2019 Data By Pay Band'!P177 -> 0 | E88: 0
B89: S | C89: ='2019 Data By Pay Band'!P178 -> 0 | E89: 0
B90: O | C90: ='2019 Data By Pay Band'!P179 -> 1 | E90: 0.125
B91: ND | C91: ='2019 Data By Pay Band'!P180 -> 3 | E91: 0.375
B92: NR | C92: ='2019 Data By Pay Band'!P181 -> 1 | E92: 0.125
A93: Trainee Grade Doctor | B93: A | D93: ='2019 Data By Pay Band'!Q172 -> 129 | F93: =D93/SUM($D$93:$D$102) -> 0.3161764706
B94: B | D94: ='2019 Data By Pay Band'!Q173 -> 2 | F94: =D94/SUM($D$93:$D$102) -> 0.004901960784
B95: C | D95: ='2019 Data By Pay Band'!Q174 -> 123 | F95: 0.3014705882
B96: H | D96: ='2019 Data By Pay Band'!Q175 -> 13 | F96: 0.0318627451
B97: I | D97: ='2019 Data By Pay Band'!Q176 -> 8 | F97: 0.01960784314
B98: J | D98: ='2019 Data By Pay Band'!Q177 -> 0 | F98: 0
B99: S | D99: ='2019 Data By Pay Band'!Q178 -> 2 | F99: 0.004901960784
B100: O | D100: ='2019 Data By Pay Band'!Q179 -> 34 | F100: 0.08333333333
B101: ND | D101: ='2019 Data By Pay Band'!Q180 -> 93 | F101: 0.2279411765
B102: NR | D102: ='2019 Data By Pay Band'!Q181 -> 4 | F102: 0.009803921569
A103: Career Grade Doctor | B103: A | C103: ='2019 Data By Pay Band'!R172 -> 2 | E103: =C103/SUM($C$103:$C$112) -> 0.03125
B104: B | C104: ='2019 Data By Pay Band'!R173 -> 0 | E104: =C104/SUM($C$103:$C$112) -> 0
B105: C | C105: ='2019 Data By Pay Band'!R174 -> 18 | E105: 0.28125
B106: H | C106: ='2019 Data By Pay Band'!R175 -> 3 | E106: 0.046875
B107: I | C107: ='2019 Data By Pay Band'!R176 -> 3 | E107: 0.046875
B108: J | C108: ='2019 Data By Pay Band'!R177 -> 0 | E108: 0
B109: S | C109: ='2019 Data By Pay Band'!R178 -> 1 | E109: 0.015625
B110: O | C110: ='2019 Data By Pay Band'!R179 -> 3 | E110: 0.046875
B111: ND | C111: ='2019 Data By Pay Band'!R180 -> 4 | E111: 0.0625
B112: NR | C112: ='2019 Data By Pay Band'!R181 -> 30 | E112: 0.46875
A113: Consultant | B113: A | D113: ='2019 Data By Pay Band'!S172 -> 39 | F113: =D113/SUM($D$113:$D$122) -> 0.1418181818
B114: B | D114: ='2019 Data By Pay Band'!S173 -> 2 | F114: =D114/SUM($D$73:$D$82) -> 0.008032128514
B115: C | D115: ='2019 Data By Pay Band'!S174 -> 91 | F115: 0.3654618474
B116: H | D116: ='2019 Data By Pay Band'!S175 -> 4 | F116: 0.01606425703
B117: I | D117: ='2019 Data By Pay Band'!S176 -> 8 | F117: 0.03212851406
B118: J | D118: ='2019 Data By Pay Band'!S177 -> 1 | F118: 0.004016064257
B119: S | D119: ='2019 Data By Pay Band'!S178 -> 2 | F119: 0.008032128514
B120: O | D120: ='2019 Data By Pay Band'!S179 -> 3 | F120: 0.01204819277
B121: ND | D121: ='2019 Data By Pay Band'!S180 -> 42 | F121: 0.1686746988
B122: NR | D122: ='2019 Data By Pay Band'!S181 -> 83 | F122: 0.3333333333
A123: Other | B123: A | C123: ='2019 Data By Pay Band'!T172 -> 2 | E123: =C123/SUM($C$123:$C$132) -> 0.05263157895
B124: B | C124: ='2019 Data By Pay Band'!T173 -> 0 | E124: =C124/SUM($C$123:$C$132) -> 0
B125: C | C125: ='2019 Data By Pay Band'!T174 -> 14 | E125: 0.3684210526
B126: H | C126: ='2019 Data By Pay Band'!T175 -> 0 | E126: 0
B127: I | C127: ='2019 Data By Pay Band'!T176 -> 0 | E127: 0
B128: J | C128: ='2019 Data By Pay Band'!T177 -> 0 | E128: 0
B129: S | C129: ='2019 Data By Pay Band'!T178 -> 0 | E129: 0
B130: O | C130: ='2019 Data By Pay Band'!T179 -> 2 | E130: 0.05263157895
B131: ND | C131: ='2019 Data By Pay Band'!T180 -> 5 | E131: 0.1315789474
B132: NR | C132: ='2019 Data By Pay Band'!T181 -> 15 | E132: 0.3947368421

Sheet RS Graph Data (hidden)
B2: Relationship Status | C2: Value | E2: Percentage | H2: Dividers | I2: 7
A3: Band 1 | B3: S | C3: ='2019 Data By Pay Band'!H141 -> 14 | E3: =C3/SUM($C$3:$C$9) -> 0.4 | I3: X | J3: Y
B4: M | C4: ='2019 Data By Pay Band'!H142 -> 21 | E4: 0.6 | H4: 1 | I4: =$I$2*H4+0.5 -> 7.5 | J4: 0
B5: C | C5: ='2019 Data By Pay Band'!H143 -> 0 | E5: 0 | H5: 2 | I5: =$I$2*H5+0.5 -> 14.5 | J5: 0
B6: D | C6: ='2019 Data By Pay Band'!H144 -> 0 | E6: 0 | H6: 3 | I6: =$I$2*H6+0.5 -> 21.5 | J6: 0
B7: LS | C7: ='2019 Data By Pay Band'!H145 -> 0 | E7: 0 | H7: 4 | I7: 28.5 | J7: 0
B8: W | C8: ='2019 Data By Pay Band'!H146 -> 0 | E8: 0 | H8: 5 | I8: 35.5 | J8: 0
B9: NR | C9: ='2019 Data By Pay Band'!H147 -> 0 | E9: 0 | H9: 6 | I9: 42.5 | J9: 0
A10: Band 2 | B10: S | D10: ='2019 Data By Pay Band'!I141 -> 821 | F10: =D10/SUM($D$10:$D$16) -> 0.452092511 | H10: 7 | I10: 49.5 | J10: 0
B11: M | D11: ='2019 Data By Pay Band'!I142 -> 754 | F11: 0.4151982379 | H11: 8 | I11: 56.5 | J11: 0
B12: C | D12: ='2019 Data By Pay Band'!I143 -> 27 | F12: 0.01486784141 | H12: 9 | I12: 63.5 | J12: 0
B13: D | D13: ='2019 Data By Pay Band'!I144 -> 118 | F13: 0.06497797357 | H13: 10 | I13: 70.5 | J13: 0
B14: LS | D14: ='2019 Data By Pay Band'!I145 -> 23 | F14: 0.01266519824 | H14: 11 | I14: 77.5 | J14: 0
B15: W | D15: ='2019 Data By Pay Band'!I146 -> 22 | F15: 0.01211453744 | H15: 12 | I15: 84.5 | J15: 0
B16: NR | D16: ='2019 Data By Pay Band'!I147 -> 51 | F16: 0.02808370044
A17: Band 3 | B17: S | C17: ='2019 Data By Pay Band'!J141 -> 205 | E17: =C17/SUM($C$17:$C$23) -> 0.3073463268
B18: M | C18: ='2019 Data By Pay Band'!J142 -> 346 | E18: 0.5187406297
B19: C | C19: ='2019 Data By Pay Band'!J143 -> 16 | E19: 0.023988006
B20: D | C20: ='2019 Data By Pay Band'!J144 -> 60 | E20: 0.08995502249
B21: LS | C21: ='2019 Data By Pay Band'!J145 -> 11 | E21: 0.01649175412
B22: W | C22: ='2019 Data By Pay Band'!J146 -> 7 | E22: 0.01049475262
B23: NR | C23: ='2019 Data By Pay Band'!J147 -> 22 | E23: 0.03298350825
A24: Band 4 | B24: S | D24: ='2019 Data By Pay Band'!K141 -> 159 | F24: =D24/SUM($D$24:$D$30) -> 0.424
B25: M | D25: ='2019 Data By Pay Band'!K142 -> 165 | F25: 0.44
B26: C | D26: ='2019 Data By Pay Band'!K143 -> 6 | F26: 0.016
B27: D | D27: ='2019 Data By Pay Band'!K144 -> 29 | F27: 0.07733333333
B28: LS | D28: ='2019 Data By Pay Band'!K145 -> 4 | F28: 0.01066666667
B29: W | D29: ='2019 Data By Pay Band'!K146 -> 2 | F29: 0.005333333333
B30: NR | D30: ='2019 Data By Pay Band'!K147 -> 10 | F30: 0.02666666667
A31: Band 5 | B31: S | C31: ='2019 Data By Pay Band'!L141 -> 532 | E31: =C31/SUM($C$31:$C$37) -> 0.4335778321
B32: M | C32: ='2019 Data By Pay Band'!L142 -> 573 | E32: 0.466992665
B33: C | C33: ='2019 Data By Pay Band'!L143 -> 11 | E33: 0.008964955175
B34: D | C34: ='2019 Data By Pay Band'!L144 -> 55 | E34: 0.04482477588
B35: LS | C35: ='2019 Data By Pay Band'!L145 -> 5 | E35: 0.004074979625
B36: W | C36: ='2019 Data By Pay Band'!L146 -> 7 | E36: 0.005704971475
B37: NR | C37: ='2019 Data By Pay Band'!L147 -> 44 | E37: 0.0358598207
A38: Band 6 | B38: S | D38: ='2019 Data By Pay Band'!M141 -> 292 | F38: =D38/SUM($D$38:$D$44) -> 0.3288288288
B39: M | D39: ='2019 Data By Pay Band'!M142 -> 521 | F39: 0.5867117117
B40: C | D40: ='2019 Data By Pay Band'!M143 -> 6 | F40: 0.006756756757
B41: D | D41: ='2019 Data By Pay Band'!M144 -> 33 | F41: 0.03716216216
B42: LS | D42: ='2019 Data By Pay Band'!M145 -> 3 | F42: 0.003378378378
B43: W | D43: ='2019 Data By Pay Band'!M146 -> 2 | F43: 0.002252252252
B44: NR | D44: ='2019 Data By Pay Band'!M147 -> 31 | F44: 0.03490990991
A45: Band 7 | B45: S | C45: ='2019 Data By Pay Band'!N141 -> 141 | E45: =C45/SUM($C$45:$C$51) -> 0.2706333973
B46: M | C46: ='2019 Data By Pay Band'!N142 -> 326 | E46: 0.6257197697
B47: C | C47: ='2019 Data By Pay Band'!N143 -> 6 | E47: 0.01151631478
B48: D | C48: ='2019 Data By Pay Band'!N144 -> 24 | E48: 0.04606525912
B49: LS | C49: ='2019 Data By Pay Band'!N145 -> 4 | E49: 0.007677543186
B50: W | C50: ='2019 Data By Pay Band'!N146 -> 3 | E50: 0.00575815739
B51: NR | C51: ='2019 Data By Pay Band'!N147 -> 17 | E51: 0.03262955854
A52: Band 8 | B52: S | D52: ='2019 Data By Pay Band'!O141 -> 67 | F52: =D52/SUM($D$52:$D$58) -> 0.2690763052
B53: M | D53: ='2019 Data By Pay Band'!O142 -> 160 | F53: 0.6425702811
B54: C | D54: ='2019 Data By Pay Band'!O143 -> 1 | F54: 0.004016064257
B55: D | D55: ='2019 Data By Pay Band'!O144 -> 16 | F55: 0.06425702811
B56: LS | D56: ='2019 Data By Pay Band'!O145 -> 3 | F56: 0.01204819277
B57: W | D57: ='2019 Data By Pay Band'!O146 -> 0 | F57: 0
B58: NR | D58: ='2019 Data By Pay Band'!O147 -> 2 | F58: 0.008032128514
A59: Band 9 | B59: S | C59: ='2019 Data By Pay Band'!P141 -> 0 | E59: =C59/SUM($C$59:$C$65) -> 0
B60: M | C60: ='2019 Data By Pay Band'!P142 -> 8 | E60: 1
B61: C | C61: ='2019 Data By Pay Band'!P143 -> 0 | E61: 0
B62: D | C62: ='2019 Data By Pay Band'!P144 -> 0 | E62: 0
B63: LS | C63: ='2019 Data By Pay Band'!P145 -> 0 | E63: 0
B64: W | C64: ='2019 Data By Pay Band'!P146 -> 0 | E64: 0
B65: NR | C65: ='2019 Data By Pay Band'!P147 -> 0 | E65: 0
A66: Trainee Grade Doctor | B66: S | D66: ='2019 Data By Pay Band'!Q141 -> 250 | F66: =D66/SUM($D$66:$D$72) -> 0.612745098
B67: M | D67: ='2019 Data By Pay Band'!Q142 -> 127 | F67: 0.3112745098
B68: C | D68: ='2019 Data By Pay Band'!Q143 -> 2 | F68: 0.004901960784
B69: D | D69: ='2019 Data By Pay Band'!Q144 -> 3 | F69: 0.007352941176
B70: LS | D70: ='2019 Data By Pay Band'!Q145 -> 0 | F70: 0
B71: W | D71: ='2019 Data By Pay Band'!Q146 -> 1 | F71: 0.002450980392
B72: NR | D72: ='2019 Data By Pay Band'!Q147 -> 25 | F72: 0.0612745098
A73: Career Grade Doctor | B73: S | C73: ='2019 Data By Pay Band'!R141 -> 12 | E73: =C73/SUM($C$73:$C$79) -> 0.1875
B74: M | C74: ='2019 Data By Pay Band'!R142 -> 48 | E74: 0.75
B75: C | C75: ='2019 Data By Pay Band'!R143 -> 0 | E75: 0
B76: D | C76: ='2019 Data By Pay Band'!R144 -> 2 | E76: 0.03125
B77: LS | C77: ='2019 Data By Pay Band'!R145 -> 1 | E77: 0.015625
B78: W | C78: ='2019 Data By Pay Band'!R146 -> 0 | E78: 0
B79: NR | C79: ='2019 Data By Pay Band'!R147 -> 1 | E79: 0.015625
A80: Consultant | B80: S | D80: ='2019 Data By Pay Band'!S141 -> 52 | F80: =D80/SUM($D$80:$D$86) -> 0.1890909091
B81: M | D81: ='2019 Data By Pay Band'!S142 -> 207 | F81: =D81/SUM($D$52:$D$58) -> 0.8313253012
B82: C | D82: ='2019 Data By Pay Band'!S143 -> 2 | F82: 0.008032128514
B83: D | D83: ='2019 Data By Pay Band'!S144 -> 4 | F83: 0.01606425703
B84: LS | D84: ='2019 Data By Pay Band'!S145 -> 0 | F84: 0
B85: W | D85: ='2019 Data By Pay Band'!S146 -> 1 | F85: 0.004016064257
B86: NR | D86: ='2019 Data By Pay Band'!S147 -> 9 | F86: 0.03614457831
A87: Other | B87: S | C87: ='2019 Data By Pay Band'!T141 -> 3 | E87: =C87/SUM($C$87:$C$93) -> 0.07894736842
B88: M | C88: ='2019 Data By Pay Band'!T142 -> 21 | E88: =C88/SUM($C$87:$C$93) -> 0.5526315789
B89: C | C89: ='2019 Data By Pay Band'!T143 -> 0 | E89: 0
B90: D | C90: ='2019 Data By Pay Band'!T144 -> 1 | E90: 0.02631578947
B91: LS | C91: ='2019 Data By Pay Band'!T145 -> 1 | E91: 0.02631578947
B92: W | C92: ='2019 Data By Pay Band'!T146 -> 1 | E92: 0.02631578947
B93: NR | C93: ='2019 Data By Pay Band'!T147 -> 11 | E93: 0.2894736842

Sheet SO Graph Data (hidden)
B2: Disability | C2: Value | E2: Percentage | H2: Dividers | I2: 4
A3: Band 1 | B3: H | C3: ='2019 Data By Pay Band'!H206 -> 22 | E3: =C3/SUM($C$3:$C$6) -> 0.8148148148 | I3: X | J3: Y
B4: LGB | C4: ='2019 Data By Pay Band'!H207 -> 0 | E4: =C4/SUM($C$3:$C$6) -> 0 | H4: 1 | I4: =$I$2*H4+0.5 -> 4.5 | J4: 0
B5: ND | C5: ='2019 Data By Pay Band'!H208 -> 5 | E5: =C5/SUM($C$3:$C$6) -> 0.1851851852 | H5: 2 | I5: =$I$2*H5+0.5 -> 8.5 | J5: 0
B6: NR | C6: ='2019 Data By Pay Band'!H209 -> 0 | E6: =C6/SUM($C$3:$C$6) -> 0 | H6: 3 | I6: =$I$2*H6+0.5 -> 12.5 | J6: 0
A7: Band 2 | B7: H | D7: ='2019 Data By Pay Band'!H206 -> 22 | F7: =D7/SUM($D$7:$D$10) -> 0.1052631579 | H7: 4 | I7: 16.5 | J7: 0
B8: LGB | D8: ='2019 Data By Pay Band'!I207 -> 32 | F8: =D8/SUM($D$7:$D$10) -> 0.1531100478 | H8: 5 | I8: 20.5 | J8: 0
B9: ND | D9: ='2019 Data By Pay Band'!I208 -> 155 | F9: =D9/SUM($D$7:$D$10) -> 0.7416267943 | H9: 6 | I9: 24.5 | J9: 0
B10: NR | D10: ='2019 Data By Pay Band'!I209 -> 0 | F10: =D10/SUM($D$7:$D$10) -> 0 | H10: 7 | I10: 28.5 | J10: 0
A11: Band 3 | B11: H | C11: ='2019 Data By Pay Band'!I206 -> 1398 | E11: =C11/SUM($C$11:$C$14) -> 0.9568788501 | H11: 8 | I11: 32.5 | J11: 0
B12: LGB | C12: ='2019 Data By Pay Band'!J207 -> 13 | E12: =C12/SUM($C$11:$C$14) -> 0.008898015058 | H12: 9 | I12: 36.5 | J12: 0
B13: ND | C13: ='2019 Data By Pay Band'!J208 -> 50 | E13: =C13/SUM($C$11:$C$14) -> 0.03422313484 | H13: 10 | I13: 40.5 | J13: 0
B14: NR | C14: ='2019 Data By Pay Band'!J209 -> 0 | E14: =C14/SUM($C$11:$C$14) -> 0 | H14: 11 | I14: 44.5 | J14: 0
A15: Band 4 | B15: H | D15: ='2019 Data By Pay Band'!J206 -> 532 | F15: =D15/SUM($D$15:$D$18) -> 0.9483065954 | H15: 12 | I15: 48.5 | J15: 0
B16: LGB | D16: ='2019 Data By Pay Band'!K207 -> 7 | F16: =D16/SUM($D$15:$D$18) -> 0.01247771836
B17: ND | D17: ='2019 Data By Pay Band'!K208 -> 22 | F17: =D17/SUM($D$15:$D$18) -> 0.03921568627
B18: NR | D18: ='2019 Data By Pay Band'!K209 -> 0 | F18: =D18/SUM($D$15:$D$18) -> 0
A19: Band 5 | B19: H | C19: ='2019 Data By Pay Band'!K206 -> 307 | E19: =C19/SUM($C$19:$C$22) -> 0.7122969838
B20: LGB | C20: ='2019 Data By Pay Band'!L207 -> 29 | E20: =C20/SUM($C$19:$C$22) -> 0.06728538283
B21: ND | C21: ='2019 Data By Pay Band'!L208 -> 95 | E21: =C21/SUM($C$19:$C$22) -> 0.2204176334
B22: NR | C22: ='2019 Data By Pay Band'!L209 -> 0 | E22: =C22/SUM($C$19:$C$22) -> 0
A23: Band 6 | B23: H | D23: ='2019 Data By Pay Band'!L206 -> 960 | F23: =D23/SUM($D$23:$D$26) -> 0.9090909091
B24: LGB | D24: ='2019 Data By Pay Band'!M207 -> 11 | F24: =D24/SUM($D$23:$D$26) -> 0.01041666667
B25: ND | D25: ='2019 Data By Pay Band'!M208 -> 84 | F25: =D25/SUM($D$23:$D$26) -> 0.07954545455
B26: NR | D26: ='2019 Data By Pay Band'!M209 -> 1 | F26: =D26/SUM($D$23:$D$26) -> 0.000946969697
A27: Band 7 | B27: H | C27: ='2019 Data By Pay Band'!M206 -> 709 | E27: =C27/SUM($C$27:$C$30) -> 0.9183937824
B28: LGB | C28: ='2019 Data By Pay Band'!N207 -> 13 | E28: =C28/SUM($C$27:$C$30) -> 0.01683937824
B29: ND | C29: ='2019 Data By Pay Band'!N208 -> 50 | E29: =C29/SUM($C$27:$C$30) -> 0.06476683938
B30: NR | C30: ='2019 Data By Pay Band'!N209 -> 0 | E30: =C30/SUM($C$27:$C$30) -> 0
A31: Band 8 | B31: H | D31: ='2019 Data By Pay Band'!N206 -> 363 | F31: =D31/SUM($D$31:$D$34) -> 0.9428571429
B32: LGB | D32: ='2019 Data By Pay Band'!O207 -> 2 | F32: =D32/SUM($D$31:$D$34) -> 0.005194805195
B33: ND | D33: ='2019 Data By Pay Band'!O208 -> 20 | F33: =D33/SUM($D$31:$D$34) -> 0.05194805195
B34: NR | D34: ='2019 Data By Pay Band'!O209 -> 0 | F34: =D34/SUM($D$31:$D$34) -> 0
A35: Band 9 | B35: H | C35: ='2019 Data By Pay Band'!O206 -> 189 | E35: =C35/SUM($C$35:$C$38) -> 1
B36: LGB | C36: ='2019 Data By Pay Band'!P207 -> 0 | E36: =C36/SUM($C$35:$C$38) -> 0
B37: ND | C37: ='2019 Data By Pay Band'!P208 -> 0 | E37: =C37/SUM($C$35:$C$38) -> 0
B38: NR | C38: ='2019 Data By Pay Band'!P209 -> 0 | E38: =C38/SUM($C$35:$C$38) -> 0
A39: Trainee Grade Doctor | B39: H | D39: ='2019 Data By Pay Band'!P206 -> 7 | F39: =D39/SUM($D$39:$D$42) -> 0.07865168539
B40: LGB | D40: ='2019 Data By Pay Band'!Q207 -> 13 | F40: =D40/SUM($D$39:$D$42) -> 0.1460674157
B41: ND | D41: ='2019 Data By Pay Band'!Q208 -> 69 | F41: =D41/SUM($D$39:$D$42) -> 0.7752808989
B42: NR | D42: ='2019 Data By Pay Band'!Q209 -> 0 | F42: =D42/SUM($D$39:$D$42) -> 0
A43: Career Grade Doctor | B43: H | C43: ='2019 Data By Pay Band'!Q206 -> 321 | E43: =C43/SUM($C$43:$C$46) -> 0.9846625767
B44: LGB | C44: ='2019 Data By Pay Band'!R207 -> 0 | E44: =C44/SUM($C$43:$C$46) -> 0
B45: ND | C45: ='2019 Data By Pay Band'!R208 -> 5 | E45: =C45/SUM($C$43:$C$46) -> 0.01533742331
B46: NR | C46: ='2019 Data By Pay Band'!R209 -> 0 | E46: =C46/SUM($C$43:$C$46) -> 0
A47: Consultant | B47: H | D47: ='2019 Data By Pay Band'!R206 -> 29 | F47: =D47/SUM($D$47:$D$50) -> 0.5471698113
B48: LGB | D48: ='2019 Data By Pay Band'!S207 -> 1 | F48: =D48/SUM($D$31:$D$34) -> 0.002597402597
B49: ND | D49: ='2019 Data By Pay Band'!S208 -> 23 | F49: =D49/SUM($D$31:$D$34) -> 0.05974025974
B50: NR | D50: ='2019 Data By Pay Band'!S209 -> 0 | F50: =D50/SUM($D$31:$D$34) -> 0
A51: Other | B51: H | C51: ='2019 Data By Pay Band'!S206 -> 164 | E51: =C51/SUM($C$51:$C$54) -> 0.9647058824
B52: LGB | C52: ='2019 Data By Pay Band'!T207 -> 0 | E52: =C52/SUM($C$51:$C$54) -> 0
B53: ND | C53: ='2019 Data By Pay Band'!T208 -> 6 | E53: =C53/SUM($C$51:$C$54) -> 0.03529411765
B54: NR | C54: ='2019 Data By Pay Band'!T209 -> 0 | E54: =C54/SUM($C$51:$C$54) -> 0

Sheet RB Graph Data ET (hidden)
B2: Religious Belief | C2: Value | E2: Percentage | H2: Dividers | I2: 10
A3: Substantive - Full Time | B3: A | C3: ='2019 Data by Employee Type'!K172 -> 604 | E3: =C3/SUM($C$3:$C$12) -> 0.1994057445 | I3: X | J3: Y
B4: B | C4: ='2019 Data by Employee Type'!K173 -> 15 | E4: =C4/SUM($C$3:$C$12) -> 0.004952129416 | H4: 1 | I4: =$I$2*H4+0.5 -> 10.5 | J4: 0
B5: C | C5: ='2019 Data by Employee Type'!K174 -> 1324 | E5: 0.4371079564 | H5: 2 | I5: =$I$2*H5+0.5 -> 20.5 | J5: 0
B6: H | C6: ='2019 Data by Employee Type'!K175 -> 33 | E6: 0.01089468471 | H6: 3 | I6: =$I$2*H6+0.5 -> 30.5 | J6: 0
B7: I | C7: ='2019 Data by Employee Type'!K176 -> 36 | E7: 0.0118851106
B8: J | C8: ='2019 Data by Employee Type'!K177 -> 3 | E8: 0.0009904258831
B9: S | C9: ='2019 Data by Employee Type'!K178 -> 8 | E9: 0.002641135688
B10: O | C10: ='2019 Data by Employee Type'!K179 -> 255 | E10: 0.08418620007
B11: ND | C11: ='2019 Data by Employee Type'!K180 -> 419 | E11: 0.1383294817
B12: NR | C12: ='2019 Data by Employee Type'!K181 -> 332 | E12: 0.1096071311
A13: Substantive - Part Time | B13: A | D13: ='2019 Data by Employee Type'!L172 -> 290 | F13: =D13/SUM($D$13:$D$22) -> 0.1193906958
B14: B | D14: ='2019 Data by Employee Type'!L173 -> 9 | F14: 0.003705228489
B15: C | D15: ='2019 Data by Employee Type'!L174 -> 1135 | F15: 0.4672704817
B16: H | D16: ='2019 Data by Employee Type'!L175 -> 7 | F16: 0.00288184438
B17: I | D17: ='2019 Data by Employee Type'!L176 -> 7 | F17: 0.00288184438
B18: J | D18: ='2019 Data by Employee Type'!L177 -> 3 | F18: 0.001235076163
B19: S | D19: ='2019 Data by Employee Type'!L178 -> 0 | F19: 0
B20: O | D20: ='2019 Data by Employee Type'!L179 -> 191 | F20: 0.07863318238
B21: ND | D21: ='2019 Data by Employee Type'!L180 -> 404 | F21: 0.16632359
B22: NR | D22: ='2019 Data by Employee Type'!L181 -> 383 | F22: 0.1576780568
A23: Bank | B23: A | C23: ='2019 Data by Employee Type'!M172 -> 230 | E23: =C23/SUM($C$23:$C$32) -> 0.2066486972
B24: B | C24: ='2019 Data by Employee Type'!M173 -> 8 | E24: =C24/SUM($C$23:$C$32) -> 0.007187780773
B25: C | C25: ='2019 Data by Employee Type'!M174 -> 473 | E25: 0.4249775382
B26: H | C26: ='2019 Data by Employee Type'!M175 -> 9 | E26: 0.008086253369
B27: I | C27: ='2019 Data by Employee Type'!M176 -> 11 | E27: 0.009883198562
B28: J | C28: ='2019 Data by Employee Type'!M177 -> 0 | E28: 0
B29: S | C29: ='2019 Data by Employee Type'!M178 -> 1 | E29: 0.0008984725966
B30: O | C30: ='2019 Data by Employee Type'!M179 -> 102 | E30: 0.09164420485
B31: ND | C31: ='2019 Data by Employee Type'!M180 -> 178 | E31: 0.1599281222
B32: NR | C32: ='2019 Data by Employee Type'!M181 -> 101 | E32: 0.09074573226

Sheet RS Graph Data ET (hidden)
B2: Relationship Status | C2: Value | E2: Percentage | H2: Dividers | I2: 7
A3: Substantive - Full Time | B3: S | C3: ='2019 Data by Employee Type'!K141 -> 1408 | E3: =C3/SUM($C$3:$C$9) -> 0.4648398811 | I3: X | J3: Y
B4: M | C4: ='2019 Data by Employee Type'!K142 -> 1305 | E4: 0.4308352592 | H4: 1 | I4: =$I$2*H4+0.5 -> 7.5 | J4: 0
B5: C | C5: ='2019 Data by Employee Type'!K143 -> 33 | E5: 0.01089468471 | H5: 2 | I5: =$I$2*H5+0.5 -> 14.5 | J5: 0
B6: D | C6: ='2019 Data by Employee Type'!K144 -> 155 | E6: 0.05117200396 | H6: 3 | I6: =$I$2*H6+0.5 -> 21.5 | J6: 0
B7: LS | C7: ='2019 Data by Employee Type'!K145 -> 24 | E7: 0.007923407065
B8: W | C8: ='2019 Data by Employee Type'!K146 -> 14 | E8: 0.004621987455
B9: NR | C9: ='2019 Data by Employee Type'!K147 -> 90 | E9: 0.02971277649
A10: Substantive - Part Time | B10: S | D10: ='2019 Data by Employee Type'!L141 -> 612 | F10: =D10/SUM($D$10:$D$16) -> 0.2519555373
B11: M | D11: ='2019 Data by Employee Type'!L142 -> 1534 | F11: 0.6315356114
B12: C | D12: ='2019 Data by Employee Type'!L143 -> 29 | F12: 0.01193906958
B13: D | D13: ='2019 Data by Employee Type'!L144 -> 137 | F13: 0.05640181145
B14: LS | D14: ='2019 Data by Employee Type'!L145 -> 24 | F14: 0.009880609304
B15: W | D15: ='2019 Data by Employee Type'!L146 -> 24 | F15: 0.009880609304
B16: NR | D16: ='2019 Data by Employee Type'!L147 -> 69 | F16: 0.02840675175
A17: Bank | B17: S | C17: ='2019 Data by Employee Type'!M141 -> 528 | E17: =C17/SUM($C$17:$C$23) -> 0.474393531
B18: M | C18: ='2019 Data by Employee Type'!M142 -> 438 | E18: 0.3935309973
B19: C | C19: ='2019 Data by Employee Type'!M143 -> 15 | E19: 0.01347708895
B20: D | C20: ='2019 Data by Employee Type'!M144 -> 53 | E20: 0.04761904762
B21: LS | C21: ='2019 Data by Employee Type'!M145 -> 7 | E21: 0.006289308176
B22: W | C22: ='2019 Data by Employee Type'!M146 -> 8 | E22: 0.007187780773
B23: NR | C23: ='2019 Data by Employee Type'!M147 -> 64 | E23: 0.05750224618

Sheet A Graph Data ET (hidden)
B2: Age Band | C2: Value | E2: Percentage | H2: Dividers | I2: 6
A3: Substantive - Full Time | B3: 16-25 | C3: ='2019 Data by Employee Type'!K27 -> 371 | E3: =C3/SUM($C$3:$C$8) -> 0.1224826675 | I3: X | J3: Y
B4: 26-35 | C4: ='2019 Data by Employee Type'!K28 -> 911 | E4: 0.3007593265 | H4: 1 | I4: =$I$2*H4+0.5 -> 6.5 | J4: 0
B5: 36-45 | C5: ='2019 Data by Employee Type'!K29 -> 583 | E5: 0.1924727633 | H5: 2 | I5: =$I$2*H5+0.5 -> 12.5 | J5: 0
B6: 46-55 | C6: ='2019 Data by Employee Type'!K30 -> 772 | E6: 0.2548695939 | H6: 3 | I6: =$I$2*H6+0.5 -> 18.5 | J6: 0
B7: 56-65 | C7: ='2019 Data by Employee Type'!K31 -> 382 | E7: 0.1261142291
B8: >65 | C8: ='2019 Data by Employee Type'!K32 -> 10 | E8: 0.00330141961
A9: Substantive - Part Time | B9: 16-25 | D9: ='2019 Data by Employee Type'!L27 -> 93 | F9: =D9/SUM($D$9:$D$14) -> 0.03828736105
B10: 26-35 | D10: ='2019 Data by Employee Type'!L28 -> 456 | F10: 0.1877315768
B11: 36-45 | D11: ='2019 Data by Employee Type'!L29 -> 624 | F11: 0.2568958419
B12: 46-55 | D12: ='2019 Data by Employee Type'!L30 -> 649 | F12: 0.2671881433
B13: 56-65 | D13: ='2019 Data by Employee Type'!L31 -> 511 | F13: 0.2103746398
B14: >65 | D14: ='2019 Data by Employee Type'!L32 -> 96 | F14: 0.03952243722
A15: Bank | B15: 16-25 | C15: ='2019 Data by Employee Type'!M27 -> 208 | E15: =C15/SUM($C$15:$C$20) -> 0.1868823001
B16: 26-35 | C16: ='2019 Data by Employee Type'!M28 -> 339 | E16: 0.3045822102
B17: 36-45 | C17: ='2019 Data by Employee Type'!M29 -> 205 | E17: 0.1841868823
B18: 46-55 | C18: ='2019 Data by Employee Type'!M30 -> 163 | E18: 0.1464510332
B19: 56-65 | C19: ='2019 Data by Employee Type'!M31 -> 148 | E19: 0.1329739443
B20: >65 | C20: ='2019 Data by Employee Type'!M32 -> 50 | E20: 0.04492362983

Sheet D Graph Data ET (hidden)
B2: Disability | C2: Value | E2: Percentage | H2: Dividers | I2: 4
A3: Substantive - Full Time | B3: Y | C3: ='2019 Data by Employee Type'!K57 -> 115 | E3: =C3/SUM($C$3:$C$6) -> 0.03796632552 | I3: X | J3: Y
B4: N | C4: ='2019 Data by Employee Type'!K58 -> 2343 | E4: =C4/SUM($C$3:$C$6) -> 0.7735226147 | H4: 1 | I4: =$I$2*H4+0.5 -> 4.5 | J4: 0
B5: ND | C5: ='2019 Data by Employee Type'!K59 -> 31 | E5: =C5/SUM($C$3:$C$6) -> 0.01023440079 | H5: 2 | I5: =$I$2*H5+0.5 -> 8.5 | J5: 0
B6: NR | C6: ='2019 Data by Employee Type'!K60 -> 540 | E6: =C6/SUM($C$3:$C$6) -> 0.178276659 | H6: 3 | I6: =$I$2*H6+0.5 -> 12.5 | J6: 0
A7: Substantive - Part Time | B7: Y | D7: ='2019 Data by Employee Type'!L57 -> 71 | F7: =D7/SUM($D$7:$D$10) -> 0.02923013586
B8: N | D8: ='2019 Data by Employee Type'!L58 -> 1739 | F8: =D8/SUM($D$7:$D$10) -> 0.7159324825
B9: ND | D9: ='2019 Data by Employee Type'!L59 -> 45 | F9: =D9/SUM($D$7:$D$10) -> 0.01852614245
B10: NR | D10: ='2019 Data by Employee Type'!L60 -> 574 | F10: =D10/SUM($D$7:$D$10) -> 0.2363112392
A11: Bank | B11: Y | C11: ='2019 Data by Employee Type'!M57 -> 24 | E11: =C11/SUM($C$11:$C$14) -> 0.02156334232
B12: N | C12: ='2019 Data by Employee Type'!M58 -> 953 | E12: =C12/SUM($C$11:$C$14) -> 0.8562443845
B13: ND | C13: ='2019 Data by Employee Type'!M59 -> 16 | E13: =C13/SUM($C$11:$C$14) -> 0.01437556155
B14: NR | C14: ='2019 Data by Employee Type'!M60 -> 120 | E14: =C14/SUM($C$11:$C$14) -> 0.1078167116

Sheet E Graph Data ET (hidden)
B2: Ethnicity | C2: Value | E2: Percentage | H2: Dividers | I2: 4
A3: Substantive - Full Time | B3: WB | C3: ='2019 Data by Employee Type'!K86 -> 2183 | E3: =C3/SUM($C$3:$C$6) -> 0.720699901 | I3: X | J3: Y
B4: WO | C4: ='2019 Data by Employee Type'!K87 -> 324 | E4: =C4/SUM($C$3:$C$6) -> 0.1069659954 | H4: 1 | I4: =$I$2*H4+0.5 -> 4.5 | J4: 0
B5: BME | C5: ='2019 Data by Employee Type'!K88 -> 495 | E5: =C5/SUM($C$3:$C$6) -> 0.1634202707 | H5: 2 | I5: =$I$2*H5+0.5 -> 8.5 | J5: 0
B6: NR | C6: ='2019 Data by Employee Type'!K89 -> 27 | E6: =C6/SUM($C$3:$C$6) -> 0.008913832948 | H6: 3 | I6: =$I$2*H6+0.5 -> 12.5 | J6: 0
A7: Substantive - Part Time | B7: WB | D7: ='2019 Data by Employee Type'!L86 -> 2053 | F7: =D7/SUM($D$7:$D$10) -> 0.8452037876
B8: WO | D8: ='2019 Data by Employee Type'!L87 -> 190 | F8: =D8/SUM($D$7:$D$10) -> 0.07822149033
B9: BME | D9: ='2019 Data by Employee Type'!L88 -> 169 | F9: =D9/SUM($D$7:$D$10) -> 0.06957595718
B10: NR | D10: ='2019 Data by Employee Type'!L89 -> 17 | F10: =D10/SUM($D$7:$D$10) -> 0.006998764924
A11: Bank | B11: WB | C11: ='2019 Data by Employee Type'!M86 -> 796 | E11: =C11/SUM($C$11:$C$14) -> 0.7151841869
B12: WO | C12: ='2019 Data by Employee Type'!M87 -> 121 | E12: =C12/SUM($C$11:$C$14) -> 0.1087151842
B13: BME | C13: ='2019 Data by Employee Type'!M88 -> 159 | E13: =C13/SUM($C$11:$C$14) -> 0.1428571429
B14: NR | C14: ='2019 Data by Employee Type'!M89 -> 37 | E14: =C14/SUM($C$11:$C$14) -> 0.03324348607

Sheet SO Graph Data ET (hidden)
B2: Sexual Orientation | C2: Value | E2: Percentage | H2: Dividers | I2: 6
A3: Substantive - Full Time | B3: H | C3: ='2019 Data by Employee Type'!K206 -> 2362 | E3: =C3/SUM($C$3:$C$8) -> 0.779795312 | I3: X | J3: Y
B4: LGB | C4: ='2019 Data by Employee Type'!K207 -> 77 | E4: =C4/SUM($C$3:$C$8) -> 0.025420931 | H4: 1 | I4: =$I$2*H4+0.5 -> 6.5 | J4: 0
B5: O | C5: ='2019 Data by Employee Type'!K208 -> 1 | E5: 0.000330141961 | H5: 2 | I5: =$I$2*H5+0.5 -> 12.5 | J5: 0
B6: U | C6: ='2019 Data by Employee Type'!K209 -> 2 | E6: 0.0006602839221 | H6: 3 | I6: =$I$2*H6+0.5 -> 18.5 | J6: 0
B7: ND | C7: ='2019 Data by Employee Type'!K210 -> 244 | E7: 0.08055463849
B8: NR | C8: ='2019 Data by Employee Type'!K211 -> 343 | E8: 0.1132386926
A9: Substantive - Part Time | B9: H | D9: ='2019 Data by Employee Type'!L206 -> 1777 | F9: =D9/SUM($D$9:$D$14) -> 0.7315767806
B10: LGB | D10: ='2019 Data by Employee Type'!L207 -> 20 | F10: =D10/SUM($D$9:$D$14) -> 0.008233841087
B11: O | D11: ='2019 Data by Employee Type'!L208 -> 0 | F11: 0
B12: U | D12: ='2019 Data by Employee Type'!L209 -> 1 | F12: 0.0004116920543
B13: ND | D13: ='2019 Data by Employee Type'!L210 -> 232 | F13: 0.09551255661
B14: NR | D14: ='2019 Data by Employee Type'!L211 -> 399 | F14: 0.1642651297
A15: Bank | B15: H | C15: ='2019 Data by Employee Type'!M206 -> 879 | E15: =C15/SUM($C$15:$C$20) -> 0.7897574124
B16: LGB | C16: ='2019 Data by Employee Type'!M207 -> 24 | E16: =C16/SUM($C$15:$C$20) -> 0.02156334232
B17: O | C17: ='2019 Data by Employee Type'!M208 -> 0 | E17: 0
B18: U | C18: ='2019 Data by Employee Type'!M209 -> 3 | E18: 0.00269541779
B19: ND | C19: ='2019 Data by Employee Type'!M210 -> 108 | E19: 0.09703504043
B20: NR | C20: ='2019 Data by Employee Type'!M211 -> 99 | E20: 0.08894878706

Sheet G Graph Data ET (hidden)
B2: Gender | C2: Value | E2: Percentage | H2: Dividers | I2: 2
A3: Substantive - Full Time | B3: F | C3: ='2019 Data by Employee Type'!K115 -> 2015 | E3: =C3/SUM($C$3:$C$4) -> 0.6652360515 | I3: X | J3: Y
B4: M | C4: ='2019 Data by Employee Type'!K116 -> 1014 | E4: =C4/SUM($C$3:$C$4) -> 0.3347639485 | H4: 1 | I4: =$I$2*H4+0.5 -> 2.5 | J4: 0
A5: Substantive - Part Time | B5: F | D5: ='2019 Data by Employee Type'!L115 -> 2182 | F5: =D5/SUM($D$5:$D$6) -> 0.8983120626 | H5: 2 | I5: =$I$2*H5+0.5 -> 4.5 | J5: 0
B6: M | D6: ='2019 Data by Employee Type'!L116 -> 247 | F6: =D6/SUM($D$5:$D$6) -> 0.1016879374 | H6: 3 | I6: =$I$2*H6+0.5 -> 6.5 | J6: 0
A7: Bank | B7: F | C7: ='2019 Data by Employee Type'!M115 -> 865 | E7: =C7/SUM($C$7:$C$8) -> 0.777178796
B8: M | C8: ='2019 Data by Employee Type'!M116 -> 248 | E8: =C8/SUM($C$7:$C$8) -> 0.222821204

Sheet RS Graph Data YY (hidden)
B2: Relationship Status | C2: Value | E2: Percentage | H2: Dividers | I2: 7
A3: 2018 | B3: S | C3: ='Year on Year Comparison'!L139 -> 0.3877644194 | E3: =C3/SUM($C$3:$C$9) -> 0.3877644194 | I3: X | J3: Y
B4: M | C4: ='Year on Year Comparison'!L140 -> 0.4987064374 | E4: 0.4987064374 | H4: 1 | I4: =$I$2*H4+0.5 -> 7.5 | J4: 0
B5: C | C5: ='Year on Year Comparison'!L141 -> 0.01171815553 | E5: 0.01171815553 | H5: 2 | I5: =$I$2*H5+0.5 -> 14.5 | J5: 0
B6: D | C6: ='Year on Year Comparison'!L142 -> 0.05250342414 | E6: 0.05250342414 | H6: 3 | I6: =$I$2*H6+0.5 -> 21.5 | J6: 0
B7: LS | C7: ='Year on Year Comparison'!L143 -> 0.008370111094 | E7: 0.008370111094 | H7: 4 | I7: =$I$2*H7+0.5 -> 28.5 | J7: 0
B8: W | C8: ='Year on Year Comparison'!L144 -> 0.007000456552 | E8: 0.007000456552 | H8: 5 | I8: =$I$2*H8+0.5 -> 35.5 | J8: 0
B9: NR | C9: ='Year on Year Comparison'!L145 -> 0.03393699589 | E9: 0.03393699589
A10: 2017 | B10: S | D10: ='Year on Year Comparison'!M139 -> 0.3938778697 | F10: =D10/SUM($D$10:$D$16) -> 0.3938778697
B11: M | D11: ='Year on Year Comparison'!M140 -> 0.4974230829 | F11: 0.4974230829
B12: C | D12: ='Year on Year Comparison'!M141 -> 0.01093237545 | F12: 0.01093237545
B13: D | D13: ='Year on Year Comparison'!M142 -> 0.04872715914 | F13: 0.04872715914
B14: LS | D14: ='Year on Year Comparison'!M143 -> 0.009214430736 | F14: 0.009214430736
B15: W | D15: ='Year on Year Comparison'!M144 -> 0.006559425269 | F15: 0.006559425269
B16: NR | D16: ='Year on Year Comparison'!M145 -> 0.03326565672 | F16: 0.03326565672
A17: 2016 | B17: S | C17: ='Year on Year Comparison'!N139 -> 0.3934663663 | E17: =C17/SUM($C$17:$C$23) -> 0.3934663663
B18: M | C18: ='Year on Year Comparison'!N140 -> 0.5012874155 | E18: 0.5012874155
B19: C | C19: ='Year on Year Comparison'!N141 -> 0.007402639202 | E19: 0.007402639202
B20: D | C20: ='Year on Year Comparison'!N142 -> 0.05230125523 | E20: 0.05230125523
B21: LS | C21: ='Year on Year Comparison'!N143 -> 0.01029932411 | E21: 0.01029932411
B22: W | C22: ='Year on Year Comparison'!N144 -> 0.006115223688 | E22: 0.006115223688
B23: NR | C23: ='Year on Year Comparison'!N145 -> 0.02912777599 | E23: 0.02912777599
A24: 2015 | B24: S | D24: ='Year on Year Comparison'!O139 -> 0.3868340685 | F24: =D24/SUM($D$24:$D$30) -> 0.3868340685
B25: M | D25: ='Year on Year Comparison'!O140 -> 0.5140821174 | F25: 0.5140821174
B26: C | D26: ='Year on Year Comparison'!O141 -> 0.00559891415 | F26: 0.00559891415
B27: D | D27: ='Year on Year Comparison'!O142 -> 0.05327451646 | F27: 0.05327451646
B28: LS | D28: ='Year on Year Comparison'!O143 -> 0.008822531388 | F28: 0.008822531388
B29: W | D29: ='Year on Year Comparison'!O144 -> 0.007295554801 | F29: 0.007295554801
B30: NR | D30: ='Year on Year Comparison'!O145 -> 0.02409229725 | F30: 0.02409229725
A31: 2014 | B31: S | C31: ='Year on Year Comparison'!P139 -> 0.3882251082 | E31: =C31/SUM($C$31:$C$37) -> 0.3882251082
B32: M | C32: ='Year on Year Comparison'!P140 -> 0.5141125541 | E32: 0.5141125541
B33: C | C33: ='Year on Year Comparison'!P141 -> 0.002597402597 | E33: 0.002597402597
B34: D | C34: ='Year on Year Comparison'!P142 -> 0.05748917749 | E34: 0.05748917749
B35: LS | C35: ='Year on Year Comparison'!P143 -> 0.00987012987 | E35: 0.00987012987
B36: W | C36: ='Year on Year Comparison'!P144 -> 0.007272727273 | E36: 0.007272727273
B37: NR | C37: ='Year on Year Comparison'!P145 -> 0.02043290043 | E37: 0.02043290043

Sheet A Graph Data YY (hidden)
B2: Age Band | C2: Value | E2: Percentage | H2: Dividers | I2: 6
A3: ='Year on Year Comparison'!$L$26 -> 2019 | B3: 16-25 | C3: ='Year on Year Comparison'!L27 -> 0.1022675392 | E3: =C3/SUM($C$3:$C$8) -> 0.1022675392 | I3: X | J3: Y
B4: 26-35 | C4: ='Year on Year Comparison'!L28 -> 0.2596256278 | E4: 0.2596256278 | H4: 1 | I4: =$I$2*H4+0.5 -> 6.5 | J4: 0
B5: 36-45 | C5: ='Year on Year Comparison'!L29 -> 0.2148835794 | E5: 0.2148835794 | H5: 2 | I5: =$I$2*H5+0.5 -> 12.5 | J5: 0
B6: 46-55 | C6: ='Year on Year Comparison'!L30 -> 0.2410591995 | E6: 0.2410591995 | H6: 3 | I6: =$I$2*H6+0.5 -> 18.5 | J6: 0
B7: 56-65 | C7: ='Year on Year Comparison'!L31 -> 0.1584233754 | E7: 0.1584233754 | H7: 4 | I7: =$I$2*H7+0.5 -> 24.5 | J7: 0
B8: >65 | C8: ='Year on Year Comparison'!L32 -> 0.02374067874 | E8: 0.02374067874 | H8: 5 | I8: =$I$2*H8+0.5 -> 30.5 | J8: 0
A9: ='Year on Year Comparison'!$M$26 -> 2018 | B9: 16-25 | D9: ='Year on Year Comparison'!M27 -> 0.1082305169 | F9: =D9/SUM($D$9:$D$14) -> 0.1082305169
B10: 26-35 | D10: ='Year on Year Comparison'!M28 -> 0.2511322817 | F10: 0.2511322817
B11: 36-45 | D11: ='Year on Year Comparison'!M29 -> 0.2203654537 | F11: 0.2203654537
B12: 46-55 | D12: ='Year on Year Comparison'!M30 -> 0.242698735 | F12: 0.242698735
B13: 56-65 | D13: ='Year on Year Comparison'!M31 -> 0.1536779635 | F13: 0.1536779635
B14: >65 | D14: ='Year on Year Comparison'!M32 -> 0.0238950492 | F14: 0.0238950492
A15: ='Year on Year Comparison'!$N$26 -> 2017 | B15: 16-25 | C15: ='Year on Year Comparison'!N27 -> 0.1068554876 | E15: =C15/SUM($C$15:$C$20) -> 0.1068554876
B16: 26-35 | C16: ='Year on Year Comparison'!N28 -> 0.2518506598 | E16: 0.2518506598
B17: 36-45 | C17: ='Year on Year Comparison'!N29 -> 0.2209526875 | E17: 0.2209526875
B18: 46-55 | C18: ='Year on Year Comparison'!N30 -> 0.2439652398 | E18: 0.2439652398
B19: 56-65 | C19: ='Year on Year Comparison'!N31 -> 0.1515931767 | E19: 0.1515931767
B20: >65 | C20: ='Year on Year Comparison'!N32 -> 0.02478274863 | E20: 0.02478274863
A21: ='Year on Year Comparison'!$O$26 -> 2016 | B21: 16-25 | D21: ='Year on Year Comparison'!O27 -> 0.08109942314 | F21: =D21/SUM($D$21:$D$26) -> 0.08109942314
B22: 26-35 | D22: ='Year on Year Comparison'!O28 -> 0.2451645741 | F22: 0.2451645741
B23: 36-45 | D23: ='Year on Year Comparison'!O29 -> 0.2263318629 | F23: 0.2263318629
B24: 46-55 | D24: ='Year on Year Comparison'!O30 -> 0.2495758398 | F24: 0.2495758398
B25: 56-65 | D25: ='Year on Year Comparison'!O31 -> 0.1681370886 | F25: 0.1681370886
B26: >65 | D26: ='Year on Year Comparison'!O32 -> 0.0296912114 | F26: 0.0296912114
A27: ='Year on Year Comparison'!$P$26 -> 2015 | B27: 16-25 | C27: ='Year on Year Comparison'!P27 -> 0.1000865801 | E27: =C27/SUM($C$27:$C$32) -> 0.1000865801
B28: 26-35 | C28: ='Year on Year Comparison'!P28 -> 0.2431168831 | E28: 0.2431168831
B29: 36-45 | C29: ='Year on Year Comparison'!P29 -> 0.2280519481 | E29: 0.2280519481
B30: 46-55 | C30: ='Year on Year Comparison'!P30 -> 0.2547186147 | E30: 0.2547186147
B31: 56-65 | C31: ='Year on Year Comparison'!P31 -> 0.1503030303 | E31: 0.1503030303
B32: >65 | C32: ='Year on Year Comparison'!P32 -> 0.02372294372 | E32: 0.02372294372

Sheet D Graph Data YY (hidden)
B2: Disability | C2: Value | E2: Percentage | H2: Dividers | I2: 4
A3: ='Year on Year Comparison'!$L$56 -> 2019 | B3: Y | C3: ='Year on Year Comparison'!L57 -> 0.031958606 | E3: =C3/SUM($C$3:$C$6) -> 0.031958606 | I3: X | J3: Y
B4: N | C4: ='Year on Year Comparison'!L58 -> 0.7662456247 | E4: =C4/SUM($C$3:$C$6) -> 0.7662456247 | H4: 1 | I4: =$I$2*H4+0.5 -> 4.5 | J4: 0
B5: ND | C5: ='Year on Year Comparison'!L59 -> 0.0140009131 | E5: =C5/SUM($C$3:$C$6) -> 0.0140009131 | H5: 2 | I5: =$I$2*H5+0.5 -> 8.5 | J5: 0
B6: NR | C6: ='Year on Year Comparison'!L60 -> 0.1877948562 | E6: =C6/SUM($C$3:$C$6) -> 0.1877948562 | H6: 3 | I6: =$I$2*H6+0.5 -> 12.5 | J6: 0
A7: ='Year on Year Comparison'!$M$56 -> 2018 | B7: Y | D7: ='Year on Year Comparison'!M57 -> 0.03295330314 | F7: =D7/SUM($D$7:$D$10) -> 0.03295330314 | H7: 4 | I7: =$I$2*H7+0.5 -> 16.5 | J7: 0
B8: N | D8: ='Year on Year Comparison'!M58 -> 0.7391847571 | F8: =D8/SUM($D$7:$D$10) -> 0.7391847571 | H8: 5 | I8: =$I$2*H8+0.5 -> 20.5 | J8: 0
B9: ND | D9: ='Year on Year Comparison'!M59 -> 0.01155708262 | F9: =D9/SUM($D$7:$D$10) -> 0.01155708262
B10: NR | D10: ='Year on Year Comparison'!M60 -> 0.2163048571 | F10: =D10/SUM($D$7:$D$10) -> 0.2163048571
A11: ='Year on Year Comparison'!$N$56 -> 2017 | B11: Y | C11: ='Year on Year Comparison'!N57 -> 0.03331187641 | E11: =C11/SUM($C$11:$C$14) -> 0.03331187641
B12: N | C12: ='Year on Year Comparison'!N58 -> 0.7030897972 | E12: =C12/SUM($C$11:$C$14) -> 0.7030897972
B13: ND | C13: ='Year on Year Comparison'!N59 -> 0.008690054715 | E13: =C13/SUM($C$11:$C$14) -> 0.008690054715
B14: NR | C14: ='Year on Year Comparison'!N60 -> 0.2549082716 | E14: =C14/SUM($C$11:$C$14) -> 0.2549082716
A15: ='Year on Year Comparison'!$O$56 -> 2016 | B15: Y | D15: ='Year on Year Comparison'!O57 -> 0.03155751612 | F15: =D15/SUM($D$15:$D$18) -> 0.03155751612
B16: N | D16: ='Year on Year Comparison'!O58 -> 0.6645741432 | F16: =D16/SUM($D$15:$D$18) -> 0.6645741432
B17: ND | D17: ='Year on Year Comparison'!O59 -> 0.01001017984 | F17: =D17/SUM($D$15:$D$18) -> 0.01001017984
B18: NR | D18: ='Year on Year Comparison'!O60 -> 0.2938581608 | F18: =D18/SUM($D$15:$D$18) -> 0.2938581608
A19: ='Year on Year Comparison'!$P$56 -> 2015 | B19: Y | C19: ='Year on Year Comparison'!P57 -> 0.02943722944 | E19: =C19/SUM($C$19:$C$22) -> 0.02943722944
B20: N | C20: ='Year on Year Comparison'!P58 -> 0.5980952381 | E20: =C20/SUM($C$19:$C$22) -> 0.5980952381
B21: ND | C21: ='Year on Year Comparison'!P59 -> 0.005021645022 | E21: =C21/SUM($C$19:$C$22) -> 0.005021645022
B22: NR | C22: ='Year on Year Comparison'!P60 -> 0.3674458874 | E22: =C22/SUM($C$19:$C$22) -> 0.3674458874

Sheet E Graph Data YY (hidden)
B2: Ethnicity | C2: Value | E2: Percentage | H2: Dividers | I2: 4
A3: ='Year on Year Comparison'!$L$84 -> 2019 | B3: WB | C3: ='Year on Year Comparison'!L85 -> 0.7657890732 | E3: =C3/SUM($C$3:$C$6) -> 0.7657890732 | I3: X | J3: Y
B4: WO | C4: ='Year on Year Comparison'!L86 -> 0.09663673718 | E4: =C4/SUM($C$3:$C$6) -> 0.09663673718 | H4: 1 | I4: =$I$2*H4+0.5 -> 4.5 | J4: 0
B5: BME | C5: ='Year on Year Comparison'!L87 -> 0.1252472987 | E5: =C5/SUM($C$3:$C$6) -> 0.1252472987 | H5: 2 | I5: =$I$2*H5+0.5 -> 8.5 | J5: 0
B6: NR | C6: ='Year on Year Comparison'!L88 -> 0.01232689088 | E6: =C6/SUM($C$3:$C$6) -> 0.01232689088 | H6: 3 | I6: =$I$2*H6+0.5 -> 12.5 | J6: 0
A7: ='Year on Year Comparison'!$M$84 -> 2018 | B7: WB | D7: ='Year on Year Comparison'!M85 -> 0.776823364 | F7: =D7/SUM($D$7:$D$10) -> 0.776823364 | H7: 4 | I7: =$I$2*H7+0.5 -> 16.5 | J7: 0
B8: WO | D8: ='Year on Year Comparison'!M86 -> 0.1019834453 | F8: =D8/SUM($D$7:$D$10) -> 0.1019834453 | H8: 5 | I8: =$I$2*H8+0.5 -> 20.5 | J8: 0
B9: BME | D9: ='Year on Year Comparison'!M87 -> 0.114165235 | F9: =D9/SUM($D$7:$D$10) -> 0.114165235
B10: NR | D10: ='Year on Year Comparison'!M88 -> 0.007027955646 | F10: =D10/SUM($D$7:$D$10) -> 0.007027955646
A11: ='Year on Year Comparison'!$N$84 -> 2017 | B11: WB | C11: ='Year on Year Comparison'!N85 -> 0.7779208239 | E11: =C11/SUM($C$11:$C$14) -> 0.7779208239
B12: WO | C12: ='Year on Year Comparison'!N86 -> 0.1095912456 | E12: =C12/SUM($C$11:$C$14) -> 0.1095912456
B13: BME | C13: ='Year on Year Comparison'!N87 -> 0.1062117799 | E13: =C13/SUM($C$11:$C$14) -> 0.1062117799
B14: NR | C14: ='Year on Year Comparison'!N88 -> 0.006276150628 | E14: =C14/SUM($C$11:$C$14) -> 0.006276150628
A15: ='Year on Year Comparison'!$O$84 -> 2016 | B15: WB | D15: ='Year on Year Comparison'!O85 -> 0.7792670512 | F15: =D15/SUM($D$15:$D$18) -> 0.7792670512
B16: WO | D16: ='Year on Year Comparison'!O86 -> 0.1135052596 | F16: =D16/SUM($D$15:$D$18) -> 0.1135052596
B17: BME | D17: ='Year on Year Comparison'!O87 -> 0.1043434001 | F17: =D17/SUM($D$15:$D$18) -> 0.1043434001
B18: NR | D18: ='Year on Year Comparison'!O88 -> 0.002884289108 | F18: =D18/SUM($D$15:$D$18) -> 0.002884289108
A19: ='Year on Year Comparison'!$P$84 -> 2015 | B19: WB | C19: ='Year on Year Comparison'!P85 -> 0.7800865801 | E19: =C19/SUM($C$19:$C$22) -> 0.7800865801
B20: WO | C20: ='Year on Year Comparison'!P86 -> 0.1127272727 | E20: =C20/SUM($C$19:$C$22) -> 0.1127272727
B21: BME | C21: ='Year on Year Comparison'!P87 -> 0.1018181818 | E21: =C21/SUM($C$19:$C$22) -> 0.1018181818
B22: NR | C22: ='Year on Year Comparison'!P88 -> 0.005367965368 | E22: =C22/SUM($C$19:$C$22) -> 0.005367965368

Sheet G Graph Data YY (hidden)
B2: Gender | C2: Value | E2: Percentage | H2: Dividers | I2: 2
A3: ='Year on Year Comparison'!$L$112 -> 2019 | B3: F | C3: ='Year on Year Comparison'!L113 -> 0.7703545883 | E3: =C3/SUM($C$3:$C$4) -> 0.7703545883 | I3: X | J3: Y
B4: M | C4: ='Year on Year Comparison'!L114 -> 0.2296454117 | E4: =C4/SUM($C$3:$C$4) -> 0.2296454117 | H4: 1 | I4: =$I$2*H4+0.5 -> 2.5 | J4: 0
A5: ='Year on Year Comparison'!$M$112 -> 2018 | B5: F | D5: ='Year on Year Comparison'!M113 -> 0.7782289552 | F5: =D5/SUM($D$5:$D$6) -> 0.7782289552 | H5: 2 | I5: =$I$2*H5+0.5 -> 4.5 | J5: 0
B6: M | D6: ='Year on Year Comparison'!M114 -> 0.2217710448 | F6: =D6/SUM($D$5:$D$6) -> 0.2217710448 | H6: 3 | I6: =$I$2*H6+0.5 -> 6.5 | J6: 0
A7: ='Year on Year Comparison'!$N$112 -> 2017 | B7: F | C7: ='Year on Year Comparison'!N113 -> 0.772610235 | E7: =C7/SUM($C$7:$C$8) -> 0.772610235 | H7: 4 | I7: =$I$2*H7+0.5 -> 8.5 | J7: 0
B8: M | C8: ='Year on Year Comparison'!N114 -> 0.227389765 | E8: =C8/SUM($C$7:$C$8) -> 0.227389765 | H8: 5 | I8: =$I$2*H8+0.5 -> 10.5 | J8: 0
A9: ='Year on Year Comparison'!$O$112 -> 2016 | B9: F | D9: ='Year on Year Comparison'!O113 -> 0.7740074652 | F9: =D9/SUM($D$9:$D$10) -> 0.7740074652
B10: M | D10: ='Year on Year Comparison'!O114 -> 0.2259925348 | F10: =D10/SUM($D$9:$D$10) -> 0.2259925348
A11: ='Year on Year Comparison'!$P$112 -> 2015 | B11: F | C11: ='Year on Year Comparison'!P113 -> 0.7754112554 | E11: =C11/SUM($C$11:$C$12) -> 0.7754112554
B12: M | C12: ='Year on Year Comparison'!P114 -> 0.2245887446 | E12: =C12/SUM($C$11:$C$12) -> 0.2245887446

Sheet SO Graph Data YY (hidden)
B2: Sexual Orientation | C2: Value | E2: Percentage | H2: Dividers | I2: 6
A3: ='Year on Year Comparison'!$L$138 -> 2019 | B3: H | C3: ='Year on Year Comparison'!L204 -> 0.7636584995 | E3: =C3/SUM($C$3:$C$8) -> 0.7636584995 | I3: X | J3: Y
B4: LGB | C4: ='Year on Year Comparison'!L205 -> 0.01841424441 | E4: =C4/SUM($C$3:$C$8) -> 0.01841424441 | H4: 1 | I4: =$I$2*H4+0.5 -> 6.5 | J4: 0
B5: O | C5: ='Year on Year Comparison'!L206 -> 0.0001521838381 | E5: 0.0001521838381 | H5: 2 | I5: =$I$2*H5+0.5 -> 12.5 | J5: 0
B6: U | C6: ='Year on Year Comparison'!L207 -> 0.0009131030285 | E6: 0.0009131030285 | H6: 3 | I6: =$I$2*H6+0.5 -> 18.5 | J6: 0
B7: ND | C7: ='Year on Year Comparison'!L208 -> 0.08887536144 | E7: 0.08887536144 | H7: 4 | I7: =$I$2*H7+0.5 -> 24.5 | J7: 0
B8: NR | C8: ='Year on Year Comparison'!L209 -> 0.1279866078 | E8: 0.1279866078 | H8: 5 | I8: =$I$2*H8+0.5 -> 30.5 | J8: 0
A9: ='Year on Year Comparison'!$M$138 -> 2018 | B9: H | D9: ='Year on Year Comparison'!M204 -> 0.7421521162 | F9: =D9/SUM($D$9:$D$14) -> 0.7421521162
B10: LGB | D10: ='Year on Year Comparison'!M205 -> 0.01764797751 | F10: =D10/SUM($D$9:$D$14) -> 0.01764797751
B11: O | D11: ='Year on Year Comparison'!M206 -> -
B12: U | D12: ='Year on Year Comparison'!M207 -> -
B13: ND | D13: ='Year on Year Comparison'!M208 -> 0.0913634234 | F13: 0.0913634234
B14: NR | D14: ='Year on Year Comparison'!M209 -> 0.1488364829 | F14: 0.1488364829
A15: ='Year on Year Comparison'!$N$138 -> 2017 | B15: H | C15: ='Year on Year Comparison'!N204 -> 0.5991281274 | E15: =C15/SUM($C$15:$C$20) -> 0.5991281274
B16: LGB | C16: ='Year on Year Comparison'!N205 -> 0.01175132676 | E16: =C16/SUM($C$15:$C$20) -> 0.01175132676
B17: O | C17: ='Year on Year Comparison'!N206 -> -
B18: U | C18: ='Year on Year Comparison'!N207 -> -
B19: ND | C19: ='Year on Year Comparison'!N208 -> 0.09950720243 | E19: 0.09950720243
B20: NR | C20: ='Year on Year Comparison'!N209 -> 0.2896133434 | E20: 0.2896133434
A21: ='Year on Year Comparison'!$O$138 -> 2016 | B21: H | D21: ='Year on Year Comparison'!O204 -> 0.6564502165 | F21: =D21/SUM($D$21:$D$26) -> 0.6564502165
B22: LGB | D22: ='Year on Year Comparison'!O205 -> 0.01316017316 | F22: =D22/SUM($D$21:$D$26) -> 0.01316017316
B23: O | D23: ='Year on Year Comparison'!O206 -> -
B24: U | D24: ='Year on Year Comparison'!O207 -> -
B25: ND | D25: ='Year on Year Comparison'!O208 -> 0.09471861472 | F25: 0.09471861472
B26: NR | D26: ='Year on Year Comparison'!O209 -> 0.2356709957 | F26: 0.2356709957
A27: ='Year on Year Comparison'!$P$138 -> 2015 | B27: H | C27: ='Year on Year Comparison'!P204 -> 0.6969799796 | E27: =C27/SUM($C$27:$C$32) -> 0.6969799796
B28: LGB | C28: ='Year on Year Comparison'!P205 -> 0.0145911096 | E28: =C28/SUM($C$27:$C$32) -> 0.0145911096
B29: O | C29: ='Year on Year Comparison'!P206 -> -
B30: U | C30: ='Year on Year Comparison'!P207 -> -
B31: ND | C31: ='Year on Year Comparison'!P208 -> 0.09416355616 | E31: 0.09416355616
B32: NR | C32: ='Year on Year Comparison'!P209 -> 0.1942653546 | E32: 0.1942653546

Sheet RB Graph Data YY (hidden)
B2: Religious Belief | C2: Value | E2: Percentage | H2: Dividers | I2: 10
A3: ='Year on Year Comparison'!$L$169 -> 2019 | B3: A | C3: ='Year on Year Comparison'!L170 -> 0.171054634 | E3: =C3/SUM($C$3:$C$12) -> 0.171054634 | I3: X | J3: Y
B4: B | C4: ='Year on Year Comparison'!L171 -> 0.004869882818 | E4: =C4/SUM($C$3:$C$12) -> 0.004869882818 | H4: 1 | I4: =$I$2*H4+0.5 -> 10.5 | J4: 0
B5: C | C5: ='Year on Year Comparison'!L172 -> 0.4462030132 | E5: 0.4462030132 | H5: 2 | I5: =$I$2*H5+0.5 -> 20.5 | J5: 0
B6: H | C6: ='Year on Year Comparison'!L173 -> 0.007457008066 | E6: 0.007457008066 | H6: 3 | I6: =$I$2*H6+0.5 -> 30.5 | J6: 0
B7: I | C7: ='Year on Year Comparison'!L174 -> 0.008217927256 | E7: 0.008217927256 | H7: 4 | I7: =$I$2*H7+0.5 -> 40.5 | J7: 0
B8: J | C8: ='Year on Year Comparison'!L175 -> 0.0009131030285 | E8: 0.0009131030285 | H8: 5 | I8: =$I$2*H8+0.5 -> 50.5 | J8: 0
B9: S | C9: ='Year on Year Comparison'!L176 -> 0.001369654543 | E9: 0.001369654543
B10: O | C10: ='Year on Year Comparison'!L177 -> 0.08339674327 | E10: 0.08339674327
B11: ND | C11: ='Year on Year Comparison'!L178 -> 0.1523360219 | E11: 0.1523360219
B12: NR | C12: ='Year on Year Comparison'!L179 -> 0.1241820119 | E12: 0.1241820119
A13: ='Year on Year Comparison'!$M$169 -> 2018 | B13: A | D13: ='Year on Year Comparison'!M170 -> 0.1641418085 | F13: =D13/SUM($D$13:$D$22) -> 0.1641418085
B14: B | D14: ='Year on Year Comparison'!M171 -> 0.004841480556 | F14: 0.004841480556
B15: C | D15: ='Year on Year Comparison'!M172 -> 0.4397938466 | F15: 0.4397938466
B16: H | D16: ='Year on Year Comparison'!M173 -> 0.00734030923 | F16: 0.00734030923
B17: I | D17: ='Year on Year Comparison'!M174 -> 0.007652662814 | F17: 0.007652662814
B18: J | D18: ='Year on Year Comparison'!M175 -> 0.0007808839606 | F18: 0.0007808839606
B19: S | D19: ='Year on Year Comparison'!M176 -> 0.001405591129 | F19: 0.001405591129
B20: O | D20: ='Year on Year Comparison'!M177 -> 0.07793221927 | F20: 0.07793221927
B21: ND | D21: ='Year on Year Comparison'!M178 -> 0.1511791348 | F21: 0.1511791348
B22: NR | D22: ='Year on Year Comparison'!M179 -> 0.1449320631 | F22: 0.1449320631
A23: ='Year on Year Comparison'!$N$169 -> 2017 | B23: A | C23: ='Year on Year Comparison'!N170 -> 0.1483746379 | E23: =C23/SUM($C$23:$C$32) -> 0.1483746379
B24: B | C24: ='Year on Year Comparison'!N171 -> 0.004023173479 | E24: =C24/SUM($C$23:$C$32) -> 0.004023173479
B25: C | C25: ='Year on Year Comparison'!N172 -> 0.4341808819 | E25: 0.4341808819
B26: H | C26: ='Year on Year Comparison'!N173 -> 0.006276150628 | E26: 0.006276150628
B27: I | C27: ='Year on Year Comparison'!N174 -> 0.006276150628 | E27: 0.006276150628
B28: J | C28: ='Year on Year Comparison'!N175 -> 0.0006437077567 | E28: 0.0006437077567
B29: S | C29: ='Year on Year Comparison'!N176 -> 0.001287415513 | E29: 0.001287415513
B30: O | C30: ='Year on Year Comparison'!N177 -> 0.07627936917 | E30: 0.07627936917
B31: ND | C31: ='Year on Year Comparison'!N178 -> 0.1709044094 | E31: 0.1709044094
B32: NR | C32: ='Year on Year Comparison'!N179 -> 0.1517541036 | E32: 0.1517541036
A33: ='Year on Year Comparison'!$O$169 -> 2016 | B33: A | D33: ='Year on Year Comparison'!O170 -> 0.1365795724 | F33: =D33/SUM($D$33:$D$42) -> 0.1365795724
B34: B | D34: ='Year on Year Comparison'!O171 -> 0.003732609433 | F34: 0.003732609433
B35: C | D35: ='Year on Year Comparison'!O172 -> 0.4328130302 | F35: 0.4328130302
B36: H | D36: ='Year on Year Comparison'!O173 -> 0.006447234476 | F36: 0.006447234476
B37: I | D37: ='Year on Year Comparison'!O174 -> 0.007295554801 | F37: 0.007295554801
B38: J | D38: ='Year on Year Comparison'!O175 -> 0.0008483203258 | F38: 0.0008483203258
B39: S | D39: ='Year on Year Comparison'!O176 -> 0.0008483203258 | F39: 0.0008483203258
B40: O | D40: ='Year on Year Comparison'!O177 -> 0.07346454021 | F40: 0.07346454021
B41: ND | D41: ='Year on Year Comparison'!O178 -> 0.1895147608 | F41: 0.1895147608
B42: NR | D42: ='Year on Year Comparison'!O179 -> 0.148456057 | F42: 0.148456057
A43: ='Year on Year Comparison'!$P$169 -> 2015 | B43: A | C43: ='Year on Year Comparison'!P170 -> 0.1184415584 | E43: =C43/SUM($C$43:$C$52) -> 0.1184620714
B44: B | C44: ='Year on Year Comparison'!P171 -> 0.004155844156 | E44: =C44/SUM($C$43:$C$52) -> 0.004156563907
B45: C | C45: ='Year on Year Comparison'!P172 -> 0.4181818182 | E45: 0.4182542432
B46: H | C46: ='Year on Year Comparison'!P173 -> 0.004848484848 | E46: 0.004849324558
B47: I | C47: ='Year on Year Comparison'!P174 -> 0.006753246753 | E47: 0.006754416349
B48: J | C48: ='Year on Year Comparison'!P175 -> 0.001212121212 | E48: 0.00121233114
B49: S | C49: ='Year on Year Comparison'!P176 -> 0.001038961039 | E49: 0.001039140977
B50: O | C50: ='Year on Year Comparison'!P177 -> 0.06718614719 | E50: 0.06719778317
B51: ND | C51: ='Year on Year Comparison'!P178 -> 0.2297835498 | E51: 0.229823346
B52: NR | C52: ='Year on Year Comparison'!P179 -> 0.1482251082 | E52: 0.1482507794

Sheet Colours (hidden)
A1: 1 | B1: 0 | C1: 112 | D1: 192 | F1: 1 | G1: =IF(MOD(F1,INDEX($A$15:$B$21,MATCH($A$25,$A$15:$A$21,0),2))=0,INDEX($A$15:$B$21,MATCH($A$25,$A$15:$A$21,0),2),MOD(F1,INDEX($A$15:$B$21,MATCH($A$25,$A$15:$A$21,0),2))) -> 1 | H1: =INDEX($A$1:$D$10,MATCH(G1,$A$1:$A$10,0),2) -> 0 | I1: =INDEX($A$1:$D$10,MATCH(G1,$A$1:$A$10,0),3) -> 112 | J1: =INDEX($A$1:$D$10,MATCH(G1,$A$1:$A$10,0),4) -> 192
A2: 2 | B2: 0 | C2: 153 | D2: 255 | F2: 2 | G2: =IF(MOD(F2,INDEX($A$15:$B$21,MATCH($A$25,$A$15:$A$21,0),2))=0,INDEX($A$15:$B$21,MATCH($A$25,$A$15:$A$21,0),2),MOD(F2,INDEX($A$15:$B$21,MATCH($A$25,$A$15:$A$21,0),2))) -> 2 | H2: =INDEX($A$1:$D$10,MATCH(G2,$A$1:$A$10,0),2) -> 0 | I2: =INDEX($A$1:$D$10,MATCH(G2,$A$1:$A$10,0),3) -> 153 | J2: =INDEX($A$1:$D$10,MATCH(G2,$A$1:$A$10,0),4) -> 255
A3: 3 | B3: 0 | C3: 176 | D3: 240 | F3: 3 | G3: 3 | H3: 0 | I3: 176 | J3: 240
A4: 4 | B4: 51 | C4: 204 | D4: 255 | F4: 4 | G4: 4 | H4: 51 | I4: 204 | J4: 255
A5: 5 | B5: 155 | C5: 194 | D5: 230 | F5: 5 | G5: 5 | H5: 155 | I5: 194 | J5: 230
A6: 6 | B6: 180 | C6: 198 | D6: 231 | F6: 6 | G6: 6 | H6: 180 | I6: 198 | J6: 231
A7: 7 | B7: 189 | C7: 215 | D7: 238 | F7: 7 | G7: 7 | H7: 189 | I7: 215 | J7: 238
A8: 8 | B8: 217 | C8: 225 | D8: 242 | F8: 8 | G8: 1 | H8: 0 | I8: 112 | J8: 192
A9: 9 | B9: 219 | C9: 219 | D9: 219 | F9: 9 | G9: 2 | H9: 0 | I9: 153 | J9: 255
A10: 10 | B10: 166 | C10: 166 | D10: 166 | F10: 10 | G10: 3 | H10: 0 | I10: 176 | J10: 240
B11: R | C11: G | D11: B | F11: 11 | G11: 4 | H11: 51 | I11: 204 | J11: 255
F12: 12 | G12: 5 | H12: 155 | I12: 194 | J12: 230
F13: 13 | G13: 6 | H13: 180 | I13: 198 | J13: 231
F14: 14 | G14: 7 | H14: 189 | I14: 215 | J14: 238
A15: Age | B15: 6 | F15: 15 | G15: 1 | H15: 0 | I15: 112 | J15: 192
A16: Disability | B16: 4 | F16: 16 | G16: 2 | H16: 0 | I16: 153 | J16: 255
A17: Ethnicity | B17: 4 | F17: 17 | G17: 3 | H17: 0 | I17: 176 | J17: 240
A18: Gender | B18: 2 | F18: 18 | G18: 4 | H18: 51 | I18: 204 | J18: 255
A19: Relationship | B19: 7 | F19: 19 | G19: 5 | H19: 155 | I19: 194 | J19: 230
A20: Religious | B20: 10 | F20: 20 | G20: 6 | H20: 180 | I20: 198 | J20: 231
A21: Sexual | B21: 6 | F21: 21 | G21: 7 | H21: 189 | I21: 215 | J21: 238
F22: 22 | G22: 1 | H22: 0 | I22: 112 | J22: 192
F23: 23 | G23: 2 | H23: 0 | I23: 153 | J23: 255
F24: 24 | G24: 3 | H24: 0 | I24: 176 | J24: 240
A25: Relationship | F25: 25 | G25: 4 | H25: 51 | I25: 204 | J25: 255
F26: 26 | G26: 5 | H26: 155 | I26: 194 | J26: 230
F27: 27 | G27: 6 | H27: 180 | I27: 198 | J27: 231
F28: 28 | G28: 7 | H28: 189 | I28: 215 | J28: 238
F29: 29 | G29: 1 | H29: 0 | I29: 112 | J29: 192
F30: 30 | G30: 2 | H30: 0 | I30: 153 | J30: 255
F31: 31 | G31: 3 | H31: 0 | I31: 176 | J31: 240
F32: 32 | G32: 4 | H32: 51 | I32: 204 | J32: 255
F33: 33 | G33: 5 | H33: 155 | I33: 194 | J33: 230
F34: 34 | G34: 6 | H34: 180 | I34: 198 | J34: 231
F35: 35 | G35: 7 | H35: 189 | I35: 215 | J35: 238
F36: 36 | G36: 1 | H36: 0 | I36: 112 | J36: 192
F37: 37 | G37: 2 | H37: 0 | I37: 153 | J37: 255
F38: 38 | G38: 3 | H38: 0 | I38: 176 | J38: 240
F39: 39 | G39: 4 | H39: 51 | I39: 204 | J39: 255
F40: 40 | G40: 5 | H40: 155 | I40: 194 | J40: 230
F41: 41 | G41: 6 | H41: 180 | I41: 198 | J41: 231
F42: 42 | G42: 7 | H42: 189 | I42: 215 | J42: 238
F43: 43 | G43: 1 | H43: 0 | I43: 112 | J43: 192
F44: 44 | G44: 2 | H44: 0 | I44: 153 | J44: 255
F45: 45 | G45: 3 | H45: 0 | I45: 176 | J45: 240
F46: 46 | G46: 4 | H46: 51 | I46: 204 | J46: 255
F47: 47 | G47: 5 | H47: 155 | I47: 194 | J47: 230
F48: 48 | G48: 6 | H48: 180 | I48: 198 | J48: 231
F49: 49 | G49: 7 | H49: 189 | I49: 215 | J49: 238
F50: 50 | G50: 1 | H50: 0 | I50: 112 | J50: 192
F51: 51 | G51: 2 | H51: 0 | I51: 153 | J51: 255
F52: 52 | G52: 3 | H52: 0 | I52: 176 | J52: 240
F53: 53 | G53: 4 | H53: 51 | I53: 204 | J53: 255
F54: 54 | G54: 5 | H54: 155 | I54: 194 | J54: 230
F55: 55 | G55: 6 | H55: 180 | I55: 198 | J55: 231
F56: 56 | G56: 7 | H56: 189 | I56: 215 | J56: 238
F57: 57 | G57: 1 | H57: 0 | I57: 112 | J57: 192
F58: 58 | G58: 2 | H58: 0 | I58: 153 | J58: 255
F59: 59 | G59: 3 | H59: 0 | I59: 176 | J59: 240
F60: 60 | G60: 4 | H60: 51 | I60: 204 | J60: 255
F61: 61 | G61: 5 | H61: 155 | I61: 194 | J61: 230
F62: 62 | G62: 6 | H62: 180 | I62: 198 | J62: 231
F63: 63 | G63: 7 | H63: 189 | I63: 215 | J63: 238
F64: 64 | G64: 1 | H64: 0 | I64: 112 | J64: 192
F65: 65 | G65: 2 | H65: 0 | I65: 153 | J65: 255
F66: 66 | G66: =IF(MOD(F66,INDEX($A$15:$B$21,MATCH($A$25,$A$15:$A$21,0),2))=0,INDEX($A$15:$B$21,MATCH($A$25,$A$15:$A$21,0),2),MOD(F66,INDEX($A$15:$B$21,MATCH($A$25,$A$15:$A$21,0),2))) -> 3 | H66: =INDEX($A$1:$D$10,MATCH(G66,$A$1:$A$10,0),2) -> 0 | I66: =INDEX($A$1:$D$10,MATCH(G66,$A$1:$A$10,0),3) -> 176 | J66: =INDEX($A$1:$D$10,MATCH(G66,$A$1:$A$10,0),4) -> 240
F67: 67 | G67: 4 | H67: 51 | I67: 204 | J67: 255
F68: 68 | G68: 5 | H68: 155 | I68: 194 | J68: 230
F69: 69 | G69: 6 | H69: 180 | I69: 198 | J69: 231
F70: 70 | G70: 7 | H70: 189 | I70: 215 | J70: 238
F71: 71 | G71: 1 | H71: 0 | I71: 112 | J71: 192
F72: 72 | G72: 2 | H72: 0 | I72: 153 | J72: 255
F73: 73 | G73: 3 | H73: 0 | I73: 176 | J73: 240
F74: 74 | G74: 4 | H74: 51 | I74: 204 | J74: 255
F75: 75 | G75: 5 | H75: 155 | I75: 194 | J75: 230
F76: 76 | G76: 6 | H76: 180 | I76: 198 | J76: 231
F77: 77 | G77: 7 | H77: 189 | I77: 215 | J77: 238
F78: 78 | G78: 1 | H78: 0 | I78: 112 | J78: 192
F79: 79 | G79: 2 | H79: 0 | I79: =INDEX($A$1:$D$10,MATCH(G79,$A$1:$A$10,0),3) -> 153 | J79: =INDEX($A$1:$D$10,MATCH(G79,$A$1:$A$10,0),4) -> 255
F80: 80 | G80: 3 | H80: 0 | I80: 176 | J80: 240
F81: 81 | G81: 4 | H81: 51 | I81: 204 | J81: 255
F82: 82 | G82: 5 | H82: 155 | I82: 194 | J82: 230
F83: 83 | G83: 6 | H83: 180 | I83: 198 | J83: 231
F84: 84 | G84: 7 | H84: 189 | I84: 215 | J84: 238
F85: 85 | G85: 1 | H85: 0 | I85: 112 | J85: 192
F86: 86 | G86: 2 | H86: 0 | I86: 153 | J86: 255
F87: 87 | G87: 3 | H87: 0 | I87: 176 | J87: 240
F88: 88 | G88: 4 | H88: 51 | I88: 204 | J88: 255
F89: 89 | G89: 5 | H89: 155 | I89: 194 | J89: 230
F90: 90 | G90: 6 | H90: 180 | I90: 198 | J90: 231
F91: 91 | G91: 7 | H91: 189 | I91: 215 | J91: 238
F92: 92 | G92: 1 | H92: 0 | I92: 112 | J92: 192
F93: 93 | G93: 2 | H93: 0 | I93: 153 | J93: 255
F94: 94 | G94: 3 | H94: 0 | I94: 176 | J94: 240
F95: 95 | G95: 4 | H95: 51 | I95: 204 | J95: 255
F96: 96 | G96: 5 | H96: 155 | I96: 194 | J96: 230
F97: 97 | G97: 6 | H97: 180 | I97: 198 | J97: 231
F98: 98 | G98: 7 | H98: 189 | I98: 215 | J98: 238
F99: 99 | G99: 1 | H99: 0 | I99: 112 | J99: 192
F100: 100 | G100: 2 | H100: 0 | I100: 153 | J100: 255
F101: 101 | G101: 3 | H101: 0 | I101: 176 | J101: 240
F102: 102 | G102: 4 | H102: 51 | I102: 204 | J102: 255
F103: 103 | G103: 5 | H103: 155 | I103: 194 | J103: 230
F104: 104 | G104: 6 | H104: 180 | I104: 198 | J104: 231
F105: 105 | G105: 7 | H105: 189 | I105: 215 | J105: 238
F106: 106 | G106: 1 | H106: 0 | I106: 112 | J106: 192
F107: 107 | G107: 2 | H107: 0 | I107: 153 | J107: 255
F108: 108 | G108: 3 | H108: 0 | I108: 176 | J108: 240
F109: 109 | G109: 4 | H109: 51 | I109: 204 | J109: 255
F110: 110 | G110: 5 | H110: 155 | I110: 194 | J110: 230
F111: 111 | G111: 6 | H111: 180 | I111: 198 | J111: 231
F112: 112 | G112: 7 | H112: 189 | I112: 215 | J112: 238
F113: 113 | G113: 1 | H113: 0 | I113: 112 | J113: 192
F114: 114 | G114: 2 | H114: 0 | I114: 153 | J114: 255
F115: 115 | G115: 3 | H115: 0 | I115: 176 | J115: 240
F116: 116 | G116: 4 | H116: 51 | I116: 204 | J116: 255
F117: 117 | G117: 5 | H117: 155 | I117: 194 | J117: 230
F118: 118 | G118: 6 | H118: 180 | I118: 198 | J118: 231
F119: 119 | G119: 7 | H119: 189 | I119: 215 | J119: 238
F120: 120 | G120: 1 | H120: 0 | I120: 112 | J120: 192
F121: 121 | G121: 2 | H121: 0 | I121: 153 | J121: 255
F122: 122 | G122: 3 | H122: 0 | I122: 176 | J122: 240
F123: 123 | G123: 4 | H123: 51 | I123: 204 | J123: 255
F124: 124 | G124: 5 | H124: 155 | I124: 194 | J124: 230
F125: 125 | G125: 6 | H125: 180 | I125: 198 | J125: 231
F126: 126 | G126: 7 | H126: 189 | I126: 215 | J126: 238
F127: 127 | G127: 1 | H127: 0 | I127: 112 | J127: 192
F128: 128 | G128: 2 | H128: 0 | I128: 153 | J128: 255
F129: 129 | G129: 3 | H129: 0 | I129: 176 | J129: 240
F130: 130 | G130: =IF(MOD(F130,INDEX($A$15:$B$21,MATCH($A$25,$A$15:$A$21,0),2))=0,INDEX($A$15:$B$21,MATCH($A$25,$A$15:$A$21,0),2),MOD(F130,INDEX($A$15:$B$21,MATCH($A$25,$A$15:$A$21,0),2))) -> 4 | H130: =INDEX($A$1:$D$10,MATCH(G130,$A$1:$A$10,0),2) -> 51 | I130: 204 | J130: 255
